Cogmind - Beta 16 @@@ ROGUE MODE // 2025.11.21 @ 22:21:19 // Winter2019/RPGLIKE Player: Rentaro Result: Smashed by cave-in Performance ------------- Evolutions (9) 4500 Regions Visited (34) 6800 Robots Destroyed (1577) 7885 Value Destroyed (85238) 85238 Prototype IDs (389) 7780 Alien Tech Used (4) 800 Bonus (81648) 81648 TOTAL SCORE: 194651 Bonus ------- Triggered High Security 3500 Triggered Max Security 1000 High Alert Combat Kills 52179 Follower Combat Kills 227 Destroyed Unchained 3000 Network Hubs Disabled 800 Aligned with FarCom 300 Met Data Miner 300 Met Zhirov 300 Found Hidden Lab 3000 Met R17 at Research 2000 Scanned by Researcher 500 Acquired SGEMP 2000 Delivered SGEMP 2000 Destroyed MAIN.C Guards 500 Met MAIN.C 5000 Destroyed MAIN.C Shell 5000 Zhirov Destroyed MAIN.C 3000 Friendly Fire -2958 Cogmind --------- Core Integrity 0/700 Matter 380/800 Energy 238/240 System Corruption 0% Temperature Cool (5) Movement Flying (18) Location -1/Command Parts ------- > --- POWER (2) -------- Zero-point Reactor > --- PROPULSION (5) --- Diametric Drive Diametric Drive Diametric Drive Diametric Drive Improved Diametric Drive > --- UTILITY (13) ----- Experimental Matter Compressor Deep Structural Scanner Experimental Core Analyzer Experimental Core Analyzer Experimental Armor Integrity Analyzer Advanced Kinecellerator Advanced Weapon Cycler Experimental Reaction Control System Advanced Phase Shifter Graphene Brace Thermal Barrier Advanced Corruption Screen Long-range Tractor Beam > --- WEAPON (4) ------- XL Autogun Array > --- INVENTORY (6) ---- Improved Particle Accelerator Cooled Plasma Cannon Peak State ------------ > --- POWER ------------ Zero-point Reactor > --- PROPULSION ------- Diametric Drive Diametric Drive Diametric Drive Diametric Drive Improved Diametric Drive > --- UTILITY ---------- Experimental Matter Compressor Deep Structural Scanner Experimental Core Analyzer Experimental Core Analyzer Experimental Armor Integrity Analyzer Advanced Kinecellerator Advanced Weapon Cycler Experimental Reaction Control System Advanced Phase Shifter Graphene Brace Thermal Barrier Advanced Corruption Screen Long-range Tractor Beam > --- WEAPON ----------- XL Autogun Array > --- INVENTORY -------- Protomatter Protomatter Protomatter Improved Particle Accelerator Transdimensional Reconstructor Cooled Plasma Cannon [Rating: 200] Favorites ----------- Power Light Fission Core Engine Light Ion Engine Power Core Light Fission Core Reactor Zero-point Reactor Propulsion Diametric Drive Wheel Compact Wheel Flight Unit Diametric Drive Utility Advanced Reaction Control System Device Advanced Reaction Control System Storage Medium Matter Pod Processor Improved Signal Interpreter Hackware Hacking Suite Protection Experimental Power Shielding Weapon XL Autogun Array Energy Gun Medium Laser Energy Cannon Cooled Plasma Cannon Ballistic Gun XL Autogun Array Ballistic Cannon Hypervelocity Gauss Cannon Launcher Grenade Launcher Special Weapon Remote Datajack Build | -11 -10 -10 -10 -9 -8 -8 -8 -8 -6 -6 -6 -6 -6 -6 -5 -5 -5 -5 -5 -5 -4 -4 -4 -4 -4 -4 -3 -3 -3 -3 -2 -2 -1 -1 ------- Run | Yrd Mat Min Exi Min Mat Sto Rec Scr Fac Was Fac Low Low Dat Pro Fac Ext Cet Arc Hub Fac Was Fac Upp Upp Zhi Pro Res Arm Lab Res Tes Acc Com Slots Evolved 20 | 4 2 1 3 . 4 . 1 . . . 1 . . . . . 1 . . . . . 1 . . . 1 . . . . . 1 . Power 1 | . . . . . . . . . . . . . . . . . . . . . . . 1 . . . . . . . . . . . Propulsion 4 | 1 1 1 . . . . . . . . . . . . . . . . . . . . . . . . 1 . . . . . . . Utility 12 | 1 1 . 2 . 4 . 1 . . . 1 . . . . . 1 . . . . . . . . . . . . . . . 1 . Weapon 3 | 2 . . 1 . . . . . . . . . . . . . . . . . . . . . . . . . . . . . . . Parts Attached 179 | 6 9 9 4 2 14 8 1 2 . 3 34 . . 1 . 1 . . 1 4 . . 15 . 1 2 1 7 13 2 11 15 3 10 Power 13 | 1 1 . . . 1 1 . . . . 2 . . . . . . . . . . . 2 . . 1 . 1 1 . 1 1 . . Engine 3 | 1 . . . . 1 1 . . . . . . . . . . . . . . . . . . . . . . . . . . . . Core 5 | . 1 . . . . . . . . . 2 . . . . . . . . . . . 1 . . . . 1 . . . . . . Reactor 5 | . . . . . . . . . . . . . . . . . . . . . . . 1 . . 1 . . 1 . 1 1 . . Propulsion 37 | 2 3 6 . . 3 . . . . 2 7 . . . . . . . . 2 . . 2 . . . . 5 . . 3 2 . . Treads . | . . . . . . . . . . . . . . . . . . . . . . . . . . . . . . . . . . . Leg . | . . . . . . . . . . . . . . . . . . . . . . . . . . . . . . . . . . . Wheel 2 | 2 . . . . . . . . . . . . . . . . . . . . . . . . . . . . . . . . . . Hover . | . . . . . . . . . . . . . . . . . . . . . . . . . . . . . . . . . . . Flight 35 | . 3 6 . . 3 . . . . 2 7 . . . . . . . . 2 . . 2 . . . . 5 . . 3 2 . . Utility 104 | . 2 2 2 2 10 1 1 2 . 1 20 . . 1 . 1 . . 1 2 . . 11 . 1 1 1 1 10 2 7 9 3 10 Device 51 | . 1 . 2 1 4 . . . . 1 10 . . 1 . 1 . . . 2 . . 5 . . . . 1 5 . 3 6 2 6 Storage 4 | . . . . . . . 1 . . . . . . . . . . . . . . . . . . . . . 1 . . . . 2 Processor 31 | . 1 2 . 1 6 . . 2 . . 5 . . . . . . . . . . . 1 . . . . . 4 . 4 2 1 2 Hackware 14 | . . . . . . 1 . . . . 5 . . . . . . . 1 . . . 4 . 1 . 1 . . 1 . . . . Protection 4 | . . . . . . . . . . . . . . . . . . . . . . . 1 . . 1 . . . 1 . 1 . . Artifact . | . . . . . . . . . . . . . . . . . . . . . . . . . . . . . . . . . . . Weapon 25 | 3 3 1 2 . . 6 . . . . 5 . . . . . . . . . . . . . . . . . 2 . . 3 . . Energy Gun 7 | 1 1 . . . . 3 . . . . 1 . . . . . . . . . . . . . . . . . . . . 1 . . Energy Cannon 5 | . . . 1 . . . . . . . 2 . . . . . . . . . . . . . . . . . 2 . . . . . Ballistic Gun 7 | 2 1 1 1 . . 2 . . . . . . . . . . . . . . . . . . . . . . . . . . . . Ballistic Cannon 1 | . . . . . . . . . . . 1 . . . . . . . . . . . . . . . . . . . . . . . Launcher 4 | . 1 . . . . 1 . . . . . . . . . . . . . . . . . . . . . . . . . 2 . . Special Weapon 1 | . . . . . . . . . . . 1 . . . . . . . . . . . . . . . . . . . . . . . Impact Weapon . | . . . . . . . . . . . . . . . . . . . . . . . . . . . . . . . . . . . Slashing Weapon . | . . . . . . . . . . . . . . . . . . . . . . . . . . . . . . . . . . . Piercing Weapon . | . . . . . . . . . . . . . . . . . . . . . . . . . . . . . . . . . . . Special Melee Weapon . | . . . . . . . . . . . . . . . . . . . . . . . . . . . . . . . . . . . Unidentified Prototypes 79 | . 1 . . . 2 7 . . . . 11 . . 1 . . . . . 4 . . 6 . . 3 . 3 11 4 4 14 1 7 Parts Lost 3 | . 1 . . . . . . 1 . . . . . . . . . . . . . . 1 . . . . . . . . . . . Power . | . . . . . . . . . . . . . . . . . . . . . . . . . . . . . . . . . . . Propulsion 1 | . 1 . . . . . . . . . . . . . . . . . . . . . . . . . . . . . . . . . Utility 2 | . . . . . . . . 1 . . . . . . . . . . . . . . 1 . . . . . . . . . . . Weapon . | . . . . . . . . . . . . . . . . . . . . . . . . . . . . . . . . . . . Highest Loss Streak 1 | . 1 . . . . . . 1 . . . . . . . . . . . . . . 1 . . . . . . . . . . . To Critical Strikes . | . . . . . . . . . . . . . . . . . . . . . . . . . . . . . . . . . . . Average Backups 1 | . . . . . . . . . . . 2 2 2 2 2 2 2 2 2 2 2 2 2 3 3 3 4 4 3 3 3 2 4 3 Power . | . . . . . . . . . . . . . . . . . . . . . . . . . . . . . . . . . . . Propulsion . | . . . . . . . . . . . . . . . . . . . . . . . . . . . . . . . . . . . Utility . | . . . . . . . . . . . 1 1 1 1 1 1 1 1 1 1 1 1 1 2 2 2 2 1 2 2 1 . 2 1 Weapon . | . . . . . . . . . . . . 1 1 1 1 1 1 1 1 1 1 1 1 1 1 1 1 1 1 1 1 1 1 . Tool/Special . | . . . . . . . . . . . . . . . . . . . . . . . . . . . . . . . . . . . Unused Backups 3 | . 1 . 1 . . . . . . . . . . . . . . . . . . . . . . . . . . . 1 . . . Power 1 | . 1 . . . . . . . . . . . . . . . . . . . . . . . . . . . . . . . . . Propulsion . | . . . . . . . . . . . . . . . . . . . . . . . . . . . . . . . . . . . Utility 1 | . . . . . . . . . . . . . . . . . . . . . . . . . . . . . . . 1 . . . Weapon 1 | . . . 1 . . . . . . . . . . . . . . . . . . . . . . . . . . . . . . . Tool/Special . | . . . . . . . . . . . . . . . . . . . . . . . . . . . . . . . . . . . Average Slot Usage (%) 81 | . 82 92 77 78 80 82 83 83 78 83 83 85 85 84 85 85 80 80 80 85 85 85 79 72 75 75 72 79 78 79 82 79 81 80 Core 4 | . 2 9 7 7 5 5 5 5 5 5 4 5 5 5 5 5 4 4 4 4 4 4 4 9 9 7 4 7 8 8 2 . . . Flight 20 | . 16 34 28 28 22 22 21 21 21 21 20 20 20 20 20 20 19 19 19 19 19 19 13 9 9 9 8 14 20 21 20 21 21 20 Device 23 | . 9 9 18 24 23 16 15 14 10 14 23 30 30 29 30 30 28 28 28 30 33 33 27 27 27 27 26 26 26 30 29 30 29 31 Processor 20 | . 6 11 14 10 21 27 26 26 26 26 22 25 25 25 25 25 23 23 23 23 23 23 22 22 22 22 21 21 13 8 16 17 21 17 Hackware 2 | . . . . . . 4 5 5 5 5 6 . . . . . . . . 2 . . 3 . 3 2 1 4 4 5 4 . . . Ballistic Gun 6 | . 31 27 7 7 5 4 5 5 5 5 4 5 5 5 5 5 3 4 4 4 4 4 4 4 4 4 4 4 3 4 4 3 4 3 Peak Build Rating 200 | 6 10 13 52 55 72 75 73 78 75 90 119 119 119 122 119 121 121 121 126 138 137 137 152 140 143 146 148 160 168 171 178 181 181 200 Average Rating 113 | 4 7 12 49 54 67 71 72 74 75 82 106 119 119 118 119 119 120 121 121 129 137 137 137 140 142 143 146 154 153 155 170 170 175 187 On Entrance 108 | . 6 10 13 52 55 72 72 73 75 75 90 119 119 119 119 119 121 121 121 126 137 137 137 140 140 143 145 148 160 153 164 168 178 175 Avg Prop Armor Cover (%) 6 | . 6 . . . . . . . . . . . . . . . . . . . . . . . . . . . . . . . . . Naked Turns . | . . . . . . . . . . . . . . . . . . . . . . . . . . . . . . . . . . . Heaviest Build 49 | 7 11 9 23 24 28 28 28 28 27 30 33 33 33 33 33 33 33 33 33 36 36 36 41 40 40 47 47 48 44 44 47 47 44 49 Greatest Support 56 | 31 31 21 26 26 39 32 32 32 32 34 34 34 34 34 34 46 34 34 34 39 39 39 49 49 49 49 49 56 50 50 53 50 50 50 Greatest Overweight (x) 1 | . 1 . . . . . . . . . . . . . . . . . . . . . 1 . . . . . . . 1 . . . Average Overweight (x) . | . . . . . . . . . . . . . . . . . . . . . . . . . . . . . . . . . . . Largest Inventory Capacity 6 | 1 1 1 1 1 1 1 1 1 1 1 4 4 4 4 4 4 4 4 4 4 4 4 4 4 4 4 4 4 5 5 5 6 6 6 Average Capacity 3 | 1 1 1 1 1 1 1 1 1 1 1 3 4 4 4 4 4 4 4 4 4 4 4 4 4 4 4 4 4 4 5 5 5 6 6 Most Carried 6 | . 1 1 1 1 1 1 1 1 1 1 4 4 4 4 4 4 4 4 4 4 4 4 4 4 4 4 4 4 5 5 5 6 6 6 Average Carried 3 | . . . . 1 . . 1 . . . 3 3 4 4 4 4 3 4 4 3 4 4 3 3 4 4 4 3 4 4 4 5 5 5 Final Capacity 6 | 1 1 1 1 1 1 1 1 1 1 1 4 4 4 4 4 4 4 4 4 4 4 4 4 4 4 4 4 4 5 5 5 6 6 6 Final Carried 6 | . 1 1 1 1 1 1 1 1 1 1 2 4 4 4 4 4 4 4 4 4 4 4 3 4 4 4 4 4 4 5 5 6 6 2 Class Distribution -------------------- 38% | Hacker-Scout 26% | Scavenger-Scout 6% | Scavenger-Sprinter 6% | Hacker-Sprinter 5% | Hacker-Gunner 4% | Gunner 3% | Scout Dominant Class ---------------- Gunner | -10/Materials Scavenger-Sprinter | -10/Mines Scavenger-Sprinter | -10/Exiles Scavenger-Scout | -9/Mines Scout | -8/Materials Scavenger-Scout | -8/Storage Commander-Scout | -8/Recycling Commander-Sprinter | -8/Scraptown Scavenger-Scout | -6/Factory Scavenger-Scout | -6/Waste Hacker-Scout | -6/Factory Hacker-Sprinter | -6/Lower Caves Hacker-Sprinter | -6/Lower Caves Hacker-Sprinter | -6/Data Miner Hacker-Sprinter | -5/Proximity Caves Hacker-Scout | -5/Factory Hacker-Scout | -5/Extension Hacker-Scout | -5/Cetus Hacker-Scout | -5/Archives Hacker-Scout | -5/Hub_04(d) Hacker-Scout | -4/Factory Hacker-Scout | -4/Waste Hacker-Scout | -4/Factory Hacker-Gunner | -4/Upper Caves Hacker-Gunner | -4/Upper Caves Hacker-Gunner | -4/Zhirov Hacker-Gunner | -3/Proximity Caves Hacker-Scout | -3/Research Hacker-Scout | -3/Armory Hacker-Sprinter | -3/Lab Hacker-Scout | -2/Research Scavenger-Scout | -2/Testing Scavenger-Scout | -1/Access Scavenger-Scout | -1/Command Resources | -11 -10 -10 -10 -9 -8 -8 -8 -8 -6 -6 -6 -6 -6 -6 -5 -5 -5 -5 -5 -5 -4 -4 -4 -4 -4 -4 -3 -3 -3 -3 -2 -2 -1 -1 ----------- Run | Yrd Mat Min Exi Min Mat Sto Rec Scr Fac Was Fac Low Low Dat Pro Fac Ext Cet Arc Hub Fac Was Fac Upp Upp Zhi Pro Res Arm Lab Res Tes Acc Com Matter Collected 55862 | 117 745 295 1458 455 2305 1605 30 755 105 510 8802 450 317 318 645 3265 575 690 325 2235 255 . 3632 863 475 . 835 1120 3860 . 4705 3335 3024 7756 Remotely 47839 | . . . . 325 2305 1605 30 725 . . 4752 450 317 318 645 3241 575 690 325 1950 255 . 3632 863 475 . 835 1120 3845 . 4585 3335 3024 7617 Salvage Created 84616 | . 1054 114 2777 544 2534 1999 84 1258 335 731 10517 509 533 372 1014 5571 865 584 506 3267 239 . 5226 898 819 . 1315 1384 5726 . 7601 5602 6923 13715 Parts 4372 | . 62 19 143 38 147 124 10 104 16 5 632 30 23 24 39 274 73 35 36 196 15 3 270 56 41 . 79 79 324 . 382 180 290 623 Haulers Intercepted 63 | . 2 . . . 6 6 . . . . 7 . . . . 10 . . . 1 . . 5 . . . . 5 . . 9 . 12 . Recyclers Shooed 7 | . . . . . . 1 . . . . 2 . . . . . . . . . . . . . . . . . . . 4 . . . Parts Field Recycled . | . . . . . . . . . . . . . . . . . . . . . . . . . . . . . . . . . . . Retrieved Matter . | . . . . . . . . . . . . . . . . . . . . . . . . . . . . . . . . . . . Parts Self-Destructed 250 | . . . . . . . . . . . . 30 21 . 39 . . . . . . . . 52 29 . 79 . . . . . . . Prevented . | . . . . . . . . . . . . . . . . . . . . . . . . . . . . . . . . . . . Parts Restored . | . . . . . . . . . . . . . . . . . . . . . . . . . . . . . . . . . . . Kills | -11 -10 -10 -10 -9 -8 -8 -8 -8 -6 -6 -6 -6 -6 -6 -5 -5 -5 -5 -5 -5 -4 -4 -4 -4 -4 -4 -3 -3 -3 -3 -2 -2 -1 -1 ------- Run | Yrd Mat Min Exi Min Mat Sto Rec Scr Fac Was Fac Low Low Dat Pro Fac Ext Cet Arc Hub Fac Was Fac Upp Upp Zhi Pro Res Arm Lab Res Tes Acc Com Combat Hostiles Destroyed 1282 | . 19 12 62 16 43 41 3 20 5 2 193 14 8 4 21 79 15 12 4 42 4 1 108 21 12 . 23 19 103 . 86 71 75 144 Guns 1267 | . 19 12 62 16 43 41 3 20 5 2 184 14 8 4 21 79 15 12 4 41 4 1 103 21 12 . 23 19 103 . 86 71 75 144 AOE 15 | . . . . . . . . . . . 9 . . . . . . . . 1 . . 5 . . . . . . . . . . . Classes Destroyed 40 | . 8 1 5 1 1 1 . 7 . 1 4 . . . 1 1 . . . . 1 . . 1 . . . . . . 1 4 . 2 Worker 41 | . 2 . . . 3 4 . . . . 7 . . . . 7 . . . 8 . . 6 . . . . 1 . . . . 1 2 Builder 28 | . 2 . . . 4 . . . . . 8 . . . . 3 1 . . 5 . . 4 . . . . . . . 1 . . . Tunneler 4 | . . . . 1 1 . . . . . . . . . . . 1 . . . . . 1 . . . . . . . . . . . Hauler 63 | . 2 . . . 6 6 . . . . 7 . . . . 10 . . . 1 . . 5 . . . . 5 . . 9 . 12 . Recycler 24 | . 1 . . 1 3 . . . . . 4 . . . . 2 . . . 1 . . 1 . . . . . . . 9 . 1 1 Carrier 1 | . . . . . . . . . . . . . . . . . . . . . 1 . . . . . . . . . . . . . Minesweeper 2 | . . . . . . . . . . . . . . . . . . . . . . . . 1 1 . . . . . . . . . Mechanic 25 | . . . . . . 4 . . . . 8 . . . . . . . . . . . 2 . . . . . 3 . . 1 . 7 Operator 33 | . 2 . . . 1 2 . . . . 3 . . . . 1 3 . 6 2 . . . . . . . 2 4 . 2 3 . 2 Drone 33 | . . . . . . . . . . . . . . . 2 . . . . . . . 30 . . . . . . . . 1 . . Turret 8 | . . . . . . . . . . . . . . . . . . . . . . . . . . . . . . . 8 . . . Watcher 73 | . 3 . . . 5 2 . . . . 8 . . . . 6 2 2 . 5 1 . 8 . . . . 3 3 . 12 3 6 4 Swarmer 176 | . 3 11 . 12 7 7 . . . . 17 3 . . 9 14 . . . 4 . . 27 4 1 . 4 1 16 . 20 . 12 4 Cutter 7 | . . . . . . . . . . . . . . . . 3 . . . . . . 1 . . . . . . . . . . 3 Saboteur 27 | . . . . . . . . . . . 7 . . . . 2 . . . . . . 2 . . . . . 5 . 1 3 2 5 Grunt 428 | . 16 . 26 3 25 22 . . 3 . 74 7 6 . 7 31 4 3 . 10 4 . 25 8 2 . 8 7 25 . 15 30 22 45 Brawler 40 | . . . 5 . 2 . . . . . 6 1 . . 1 1 . . . . . . 1 1 . . . . 7 . 2 1 4 8 Duelist 53 | . . . 4 1 . . . . . . 10 1 1 . . 2 . . . . . . 1 3 . . . 2 12 . 1 7 2 6 Protector 26 | . . . . . . . . . . . 9 . . . . . . . . 1 . . . . . . 4 . 4 . . 1 . 7 Researcher 1 | . . . . . . . . . . . . . . . . . . . . . . . . . . . . . . . . 1 . . Sentry 130 | . . 1 . . 7 12 3 . 1 . 16 1 . . 1 12 7 . 4 7 . . 9 2 1 . 2 3 12 . 9 8 7 5 Demolisher 8 | . . . 1 . . . . . . . . . . . . . . . . . . . . . . . 4 . 2 . . . 1 . Specialist 11 | . . . . . . . . . . . 1 . . . . 1 . . . . . . . . . . . . 7 . 2 . . . Hunter 114 | . . . 18 . 1 . . . . . 29 . . . . 5 1 1 . 3 . . . 2 2 . . 6 4 . 14 8 13 7 Programmer 92 | . . . 8 . . . . . . . 17 . . . . 5 . . . 6 . . 6 . 1 . . . 5 . 16 5 6 17 Heavy 24 | . . . . . 1 . . . 1 . 6 . . . . 1 . . . 3 . . 3 . . . . . 2 . 2 . 4 1 Behemoth 23 | . . . . . . . . . . . 1 1 1 . 1 1 2 . . 1 . . 2 1 1 . 1 . 1 . 3 . 2 4 Compactor 3 | . . . . . . . . . . 2 . . . . . . . . . . . 1 . . . . . . . . . . . . Cetus Guard 8 | . . . . . . . . . . . . . . . . . . 8 . . . . . . . . . . . . . . . . M Guard 2 | . . . . . . . . . . . . . . . . . . . . . . . . . . . . . . . . . . 2 Enhanced Grunt 4 | . . . . . . . . . . . . . . 4 . . . . . . . . . . . . . . . . . . . . Lightning 6 | . . . . . . . . . . . . . . . . . . . . 6 . . . . . . . . . . . . . . Hotshot 1 | . . . . . . . . . . . . . . . . 1 . . . . . . . . . . . . . . . . . . Immortal 1 | . . . . . . . . . . . . . . . . . . . . 1 . . . . . . . . . . . . . . Combat Programmer 2 | . . . . . . . . . . . . . . . . . . . . . . . . . . . . . . . . . . 2 Investigator 6 | . . . . . . . . . . . . . . . . . . . . . . . . . . . . . . . . 2 1 3 Striker 11 | . . . . . . . . . . . . . . . . . . . . . . . . . . . . . . . . 2 . 9 Executioner 10 | . . . . . . . . . . . . . . . . . . . . . . . . . . . . . . . . 1 . 9 Alpha 7 4 | . . . . . . . . . . . . . . . . . . . . . . . . . . . . . . . . 2 . 2 Protovariant G 1 | . . . . . . . . . . . . . . . . . . . . . . . . . . . . . . . . 1 . . Protovariant D 1 | . . . . . . . . . . . . . . . . . . . . . . . . . . . . . . . . 1 . . Bolteater 3 | . . . . . . . . 3 . . . . . . . . . . . . . . . . . . . . . . . . . . Explorer 1 | . . . . . . . . 1 . . . . . . . . . . . . . . . . . . . . . . . . . . Guru 3 | . . . . . . . . 3 . . . . . . . . . . . . . . . . . . . . . . . . . . Scientist 6 | . . . . . . . . 6 . . . . . . . . . . . . . . . . . . . . . . . . . . Scrapper 11 | . . . . . . . . 11 . . . . . . . . . . . . . . . . . . . . . . . . . . Elite 2 | . . . . . . . . 2 . . . . . . . . . . . . . . . . . . . . . . . . . . Decomposer 10 | . . . . . . . . . . . . . 6 . . . . . . . . . . 4 . . . . . . . . . . Packrat 1 | . . . . . . . . . . . . . 1 . . . . . . . . . . . . . . . . . . . . . Tinkerer 1 | . . . . . . . . 1 . . . . . . . . . . . . . . . . . . . . . . . . . . Thug 5 | . . . . . . . . . . . . . . . . . 1 . . . . . . . 4 . . . . . . . . . Savage 1 | . . . . . . . . . . . . . . . . . . . . . . . . . . . . . . . . . . 1 Guerrilla 1 | . . . . . . . . . . . . . . . . . . . . . . . . . . . . . . . . . . 1 Fireman 1 | . . . . . . . . . . . . . . . . . . . . . . . . . . . . . . . . . . 1 Mutant 4 | . . . . . . . . . . . . . . . . . . . . . . . . . . . . . . . . . . 4 Best Kill Streak 76 | . 6 3 23 10 22 26 2 19 4 2 57 7 4 4 12 22 10 5 10 21 4 1 39 7 6 . 14 15 31 . 18 69 76 42 Combat Bots Only 62 | . 6 3 23 10 10 20 2 12 4 2 57 7 4 4 12 15 7 4 4 13 4 1 21 7 5 . 14 11 30 . 11 62 32 36 Max Kills in Single Turn 8 | . 2 1 2 2 2 2 1 2 1 1 7 2 2 1 2 3 2 2 2 8 1 1 5 3 2 . 2 2 3 . 2 2 2 2 Gunslinging . | . . . . . . . . . . . . . . . . . . . . . . . . . . . . . . . . . . . Exploded 7 | . . . . . . . . . . . 7 . . . . . . . . 1 . . 3 . . . . . . . . . . . Melee . | . . . . . . . . . . . . . . . . . . . . . . . . . . . . . . . . . . . Uniques/NPCs Destroyed 5 | . . . . . . . . . . . . . . . . . 1 . . . . . 1 . . . . . 1 . 1 . . 1 A7 (-5/Extension) QV-33N (-4/Factory) 6S-H0T (-3/Armory) DW-4LL (-2/Research) MAIN.C Shell (-1/Command) Combat | -11 -10 -10 -10 -9 -8 -8 -8 -8 -6 -6 -6 -6 -6 -6 -5 -5 -5 -5 -5 -5 -4 -4 -4 -4 -4 -4 -3 -3 -3 -3 -2 -2 -1 -1 -------- Run | Yrd Mat Min Exi Min Mat Sto Rec Scr Fac Was Fac Low Low Dat Pro Fac Ext Cet Arc Hub Fac Was Fac Upp Upp Zhi Pro Res Arm Lab Res Tes Acc Com Hostile Shots Fired 2221 | . 94 79 103 19 32 32 . 55 11 . 356 18 13 2 20 106 20 2 3 86 24 . 148 29 23 . 39 26 177 . 154 138 140 272 Missed 1352 | . 32 25 47 7 17 16 . 23 6 . 219 12 7 2 13 66 13 1 1 50 17 . 93 23 18 . 29 21 89 . 100 103 103 199 Hits 869 | . 62 54 56 12 15 16 . 32 5 . 137 6 6 . 7 40 7 1 2 36 7 . 55 6 5 . 10 5 88 . 54 35 37 73 Melee 5 | . . . . 1 . . . 1 . . . . . . . . . . . . . . . . . . . . 1 . . . . 2 Projectile 864 | . 62 54 56 11 15 16 . 31 5 . 137 6 6 . 7 40 7 1 2 36 7 . 55 6 5 . 10 5 87 . 54 35 37 71 AOE 19 | . . . 1 . . . . . . . . . . . . 1 . . . . . . 10 . . . 2 . 1 . . 1 . 3 Critical Strikes 66 | . 2 2 . . 2 1 . 4 . . 3 1 . . . . 1 . . 3 3 . 6 1 . . 1 . 19 . 4 5 2 6 Actively Blocked 24 | . . . . . . . . . . . . . . . . . . . . . . . . . . . . . 7 . 4 5 2 6 Part Disruptions 2 | . . . . . . . . . . . . . . . . . . . . 1 . . . . . . . . . . 1 . . . Damage Taken 21190 | . 690 512 846 132 227 742 . 782 66 . 2360 92 97 . 146 890 177 27 47 1044 358 . 2384 115 138 . 255 116 1876 . 1375 681 1002 4013 Core 17089 | . 548 420 683 109 178 612 . 644 58 . 1891 72 77 . 119 707 144 21 37 837 295 . 1943 92 112 . 198 91 1491 . 1084 534 794 3298 Absorbed by Shields 45 | . . . . . . . . . . . . . . . . . . . . . . . . . . . . . . . . 45 . . Redirected to Core 14751 | . 429 297 564 78 170 478 . 501 28 . 1645 72 77 . 94 650 117 21 37 763 226 . 1627 75 94 . 196 91 1353 . 1061 534 756 2717 Ignored by Resistances 1155 | . . . . . . . . . . . . . . . . . . . . 482 . . . . . . . . 96 . 83 72 99 323 Core Remaining (%) 87 | 100 . . . 98 . . . 17 . . . . . . 87 . . . . 100 . . . . . . 100 . . 100 . 100 . . Volleys Fired 3658 | . 117 46 91 29 143 99 3 47 12 23 558 30 26 15 43 217 44 40 21 145 17 2 238 47 31 . 53 66 242 3 296 212 201 501 Largest 3 | . 3 3 1 1 1 1 1 1 1 1 1 1 1 1 1 1 1 1 1 1 1 1 1 1 1 . 1 1 1 1 1 1 1 1 Hottest 105 | . 60 60 60 60 60 60 60 60 60 60 60 60 60 60 60 60 105 60 60 60 60 60 60 60 60 . 60 60 60 60 60 90 105 105 Shots Fired 3908 | . 297 116 91 29 143 99 3 47 12 23 558 30 26 15 43 217 44 40 21 145 17 2 238 47 31 . 53 66 242 3 296 212 201 501 Gun 3868 | . 270 116 91 29 143 99 3 47 12 23 552 30 26 15 43 217 43 40 21 145 17 2 238 47 31 . 53 66 242 3 296 212 198 498 Cannon 11 | . . . . . . . . . . . 4 . . . . . 1 . . . . . . . . . . . . . . . 3 3 Launcher 27 | . 27 . . . . . . . . . . . . . . . . . . . . . . . . . . . . . . . . . Special 2 | . . . . . . . . . . . 2 . . . . . . . . . . . . . . . . . . . . . . . Kinetic 3869 | . 270 116 91 29 143 99 3 47 12 23 556 30 26 15 43 217 43 40 21 145 17 2 238 47 31 . 53 66 242 3 296 209 198 498 Thermal 10 | . . . . . . . . . . . . . . . . . 1 . . . . . . . . . . . . . . 3 3 3 Explosive 27 | . 27 . . . . . . . . . . . . . . . . . . . . . . . . . . . . . . . . . Electromagnetic . | . . . . . . . . . . . . . . . . . . . . . . . . . . . . . . . . . . . Robot Hit Streak 95 | . 10 16 24 16 26 27 22 29 13 37 36 26 26 32 23 28 36 25 26 25 13 9 44 36 40 . 62 46 65 . 49 73 90 95 Robot Miss Streak 10 | . 10 5 4 3 3 2 . 3 3 2 5 2 1 3 5 7 3 3 2 3 1 1 8 2 3 . 2 2 4 . 8 4 4 4 Penetration Max . | . . . . . . . . . . . . . . . . . . . . . . . . . . . . . . . . . . . Secondary Targets 6 | . 4 2 . . . . . . . . . . . . . . . . . . . . . . . . . . . . . . . . Max Gunslinging Chain 1 | . 1 1 . . . . . . . . . . . . . . . . . . . . . . . . . . . . . . . . Shots Hit Robots 3183 | . 146 58 90 22 89 79 3 43 12 20 412 25 23 15 38 181 42 37 20 136 10 2 217 42 26 . 50 52 233 . 245 190 193 432 Core Hits 3704 | . 72 19 86 20 99 81 3 36 11 10 497 27 26 21 34 212 59 43 24 148 16 3 237 51 28 . 66 68 269 . 300 241 270 627 Critical Kills 1 | . . . . . . . . . . . 1 . . . . . . . . . . . . . . . . . . . . . . . Critical Parts Destroyed . | . . . . . . . . . . . . . . . . . . . . . . . . . . . . . . . . . . . Critical Strikes 1 | . . . . . . . . . . . 1 . . . . . . . . . . . . . . . . . . . . . . . Destroy 1 | . . . . . . . . . . . 1 . . . . . . . . . . . . . . . . . . . . . . . Melee Attacks . | . . . . . . . . . . . . . . . . . . . . . . . . . . . . . . . . . . . Impact . | . . . . . . . . . . . . . . . . . . . . . . . . . . . . . . . . . . . Slashing . | . . . . . . . . . . . . . . . . . . . . . . . . . . . . . . . . . . . Piercing . | . . . . . . . . . . . . . . . . . . . . . . . . . . . . . . . . . . . Sneak Attacks . | . . . . . . . . . . . . . . . . . . . . . . . . . . . . . . . . . . . Combat Hostiles . | . . . . . . . . . . . . . . . . . . . . . . . . . . . . . . . . . . . Follow-up Attacks . | . . . . . . . . . . . . . . . . . . . . . . . . . . . . . . . . . . . Damage Inflicted 265762 | . 1587 472 4809 923 5145 5758 271 3101 1021 2004 30865 1711 1734 1197 2489 14930 3483 3130 1852 11449 1194 144 18770 3648 2336 . 4256 5072 21626 . 23526 19747 18673 48839 Guns 258795 | . 1211 472 4809 923 4762 5557 271 3101 1021 2004 28027 1711 1734 1197 2489 14624 3483 3130 1852 10499 813 144 17643 3648 2336 . 4256 5072 21548 . 23526 19747 18445 48740 Cannons 38 | . . . . . . . . . . . 38 . . . . . . . . . . . . . . . . . . . . . . . Explosions 6929 | . 376 . . . 383 201 . . . . 2800 . . . . 306 . . . 950 381 . 1127 . . . . . 78 . . . 228 99 Melee . | . . . . . . . . . . . . . . . . . . . . . . . . . . . . . . . . . . . Ramming . | . . . . . . . . . . . . . . . . . . . . . . . . . . . . . . . . . . . Kinetic 258833 | . 1211 472 4809 923 4762 5557 271 3101 1021 2004 28065 1711 1734 1197 2489 14624 3483 3130 1852 10499 813 144 17643 3648 2336 . 4256 5072 21548 . 23526 19747 18445 48740 Thermal 2231 | . . . . . 266 . . . . . 1166 . . . . 27 . . . . 329 . 443 . . . . . . . . . . . Explosive 3579 | . 376 . . . . 201 . . . . 1634 . . . . 279 . . . . . . 684 . . . . . 78 . . . 228 99 Electromagnetic 1119 | . . . . . 117 . . . . . . . . . . . . . . 950 52 . . . . . . . . . . . . . Impact . | . . . . . . . . . . . . . . . . . . . . . . . . . . . . . . . . . . . Slashing . | . . . . . . . . . . . . . . . . . . . . . . . . . . . . . . . . . . . Piercing . | . . . . . . . . . . . . . . . . . . . . . . . . . . . . . . . . . . . Highest Corruption . | . . . . . . . . . . . . . . . . . . . . . . . . . . . . . . . . . . . Average Corruption . | . . . . . . . . . . . . . . . . . . . . . . . . . . . . . . . . . . . Corruption Purged . | . . . . . . . . . . . . . . . . . . . . . . . . . . . . . . . . . . . Corruption Blocked 32 | . . . . . . 1 1 2 . . 1 . . . . 1 . 1 . 7 . . 6 . . . . . 4 . 6 . 2 . Overload Shots 6 | . . . . . . . . . . . . . . . . . 1 . . . . . . . . . . . . . . . 2 3 Overflow Damage 493 | . 30 . . . 22 . . . . . 79 . . . . 38 . . . 46 . . 278 . . . . . . . . . . . Projectiles . | . . . . . . . . . . . . . . . . . . . . . . . . . . . . . . . . . . . Explosions 493 | . 30 . . . 22 . . . . . 79 . . . . 38 . . . 46 . . 278 . . . . . . . . . . . Melee . | . . . . . . . . . . . . . . . . . . . . . . . . . . . . . . . . . . . Knockbacks . | . . . . . . . . . . . . . . . . . . . . . . . . . . . . . . . . . . . Impact . | . . . . . . . . . . . . . . . . . . . . . . . . . . . . . . . . . . . Kinetic . | . . . . . . . . . . . . . . . . . . . . . . . . . . . . . . . . . . . Secondary . | . . . . . . . . . . . . . . . . . . . . . . . . . . . . . . . . . . . Self-Inflicted Damage 1031 | . 13 . . . . 80 . . . . 219 . . . . . . . . 157 221 . 131 . . . . . 63 . . . 147 . Shots 18 | . 1 . . . . 1 . . . . 3 . . . . . . . . 4 3 . 3 . . . . . 1 . . . 2 . Rammed . | . . . . . . . . . . . . . . . . . . . . . . . . . . . . . . . . . . . Targets Rammed . | . . . . . . . . . . . . . . . . . . . . . . . . . . . . . . . . . . . Kicked . | . . . . . . . . . . . . . . . . . . . . . . . . . . . . . . . . . . . Crushed . | . . . . . . . . . . . . . . . . . . . . . . . . . . . . . . . . . . . Highest Temperature 314 | . 314 230 308 2 162 33 6 39 6 6 89 51 60 51 57 105 51 51 75 75 60 3 193 92 55 . 35 41 48 . 45 229 32 36 Average Temperature 51 | . 72 96 82 2 10 7 6 9 3 3 26 31 30 29 28 36 30 26 35 32 25 3 46 44 41 . 29 25 24 . 23 32 25 25 Received Heat Transfer 2396 | . 363 72 36 6 117 108 . 276 30 . 250 60 36 . 39 99 9 . . 36 85 . 188 60 27 . 78 . 93 . 90 72 18 148 Effects 4 | . 2 . 2 . . . . . . . . . . . . . . . . . . . . . . . . . . . . . . . Shutdowns 1 | . 1 . . . . . . . . . . . . . . . . . . . . . . . . . . . . . . . . . Interference 2 | . . . 2 . . . . . . . . . . . . . . . . . . . . . . . . . . . . . . . Matter Decay 1 | . 1 . . . . . . . . . . . . . . . . . . . . . . . . . . . . . . . . . Siege Activations . | . . . . . . . . . . . . . . . . . . . . . . . . . . . . . . . . . . . Martial Activations . | . . . . . . . . . . . . . . . . . . . . . . . . . . . . . . . . . . . Shielding Activations . | . . . . . . . . . . . . . . . . . . . . . . . . . . . . . . . . . . . Robots Disrupted 1 | . . . . . 1 . . . . . . . . . . . . . . . . . . . . . . . . . . . . . Combat Hostiles 1 | . . . . . 1 . . . . . . . . . . . . . . . . . . . . . . . . . . . . . Robots Corrupted 1 | . . . . . . . . . . . . . . . . . . . . 1 . . . . . . . . . . . . . . Combat Hostiles . | . . . . . . . . . . . . . . . . . . . . . . . . . . . . . . . . . . . Parts Fried 8 | . . . . . 1 . . . . . . . . . . . . . . 6 . . . . . . . . . . . . . 1 Impact Corruptions . | . . . . . . . . . . . . . . . . . . . . . . . . . . . . . . . . . . . Robots Melted . | . . . . . . . . . . . . . . . . . . . . . . . . . . . . . . . . . . . Combat Hostiles . | . . . . . . . . . . . . . . . . . . . . . . . . . . . . . . . . . . . Parts Melted 4 | . . . . . . . 1 2 . . . . . . . . . . . . . . . . . . . 1 . . . . . . Heat Transferred 1450 | . . . . . 150 . . . . . 700 . . . . 50 . . . . 300 . 250 . . . . . . . . . . . Parts Sabotaged . | . . . . . . . . . . . . . . . . . . . . . . . . . . . . . . . . . . . Parts Stolen . | . . . . . . . . . . . . . . . . . . . . . . . . . . . . . . . . . . . Parts Stripped . | . . . . . . . . . . . . . . . . . . . . . . . . . . . . . . . . . . . Power Chain Reactions 3 | . . . . . . . . . . . . . . . . 2 . . . 1 . . . . . . . . . . . . . . Alert | -11 -10 -10 -10 -9 -8 -8 -8 -8 -6 -6 -6 -6 -6 -6 -5 -5 -5 -5 -5 -5 -4 -4 -4 -4 -4 -4 -3 -3 -3 -3 -2 -2 -1 -1 ------- Run | Yrd Mat Min Exi Min Mat Sto Rec Scr Fac Was Fac Low Low Dat Pro Fac Ext Cet Arc Hub Fac Was Fac Upp Upp Zhi Pro Res Arm Lab Res Tes Acc Com Maximum Alert Level 5 | . 3 2 . 2 5 4 2 . . . 5 . . . . 5 5 4 2 5 5 2 5 . . . . 2 5 . 5 5 5 5 Low Security (%) 21 | 100 39 . . 71 3 . . . 100 100 18 . . . . . . . . 5 . . . . . . . 49 10 . 3 . . 35 Level 1 6 | . 27 14 . 7 6 . . . . . 4 . . . . 10 . . . 9 . . 8 . . . . 17 16 . 5 . . . Level 2 13 | . 22 85 . 20 8 11 100 . . . 8 . . . . 10 . . 100 28 . 100 16 . . . . 32 5 . 10 . . . Level 3 6 | . 11 . . . 4 46 . . . . 9 . . . . 13 . . . . . . 8 . . . . . 13 . 8 . . . Level 4 15 | . . . . . 63 41 . . . . 11 . . . . 13 54 100 . 40 33 . 7 . . . . . 25 . 14 . . . Level 5 15 | . . . . . 13 . . . . . 14 . . . . 27 32 . . 16 66 . 25 . . . . . 8 . 57 . 17 10 High Security 18 | . . . . . . . . . . . 34 . . . . 24 13 . . . . . 34 . . . . . 20 . . . 82 54 Max Security 2 | . . . . . . . . . . . . . . . . . . . . . . . . . . . . . . . . 99 . . Sterilizations 1 | . . . . . . . . . . . 1 . . . . . . . . . . . . . . . . . . . . . . . Peak Influence 7063 | . 792 513 . 433 1738 1536 644 . 101 50 6246 . . . . 3434 1736 1348 686 2406 1755 559 3566 . . . . 590 2594 . 3487 4319 4811 7063 Initial 3078 | . . 308 . . 156 538 573 . . 35 . . . . . 364 1682 1100 523 236 1178 553 384 . . . . 171 301 . . 1961 2591 3078 Average 1569 | . 318 450 . 174 1179 1074 592 . 20 . 1886 . . . . 1507 1540 1244 634 1090 1566 553 1840 . . . . 273 1216 . 1736 2900 3783 5131 Influence Increases 45567 | . 1162 357 1274 553 1915 1852 141 . 131 67 6870 320 190 . 440 3814 611 318 173 2699 1051 6 3536 465 195 . 445 887 3007 . 4175 2358 2490 4065 Destroy 0b10 Robot/C 23800 | . 380 240 1260 320 860 840 60 . 100 . 3680 280 160 . 380 1540 320 240 80 800 100 . 1540 420 160 . 380 380 1960 . 1700 1440 1520 2660 Destroy 0b10 Robot/NC 1645 | . 60 . . 10 115 90 . . . . 270 . . . 10 145 35 10 30 105 5 . 135 5 5 . 35 55 60 . 165 45 105 150 Destroy Leader 4126 | . 100 40 . 40 222 226 . . 30 . 658 40 30 . 50 300 44 20 . 232 22 . 286 40 30 . 30 96 302 . 420 126 358 384 Allied During Kill 389 | . . 2 14 . . 90 28 . . . . . . . . . 79 . . . . . . . . . . . 36 . 17 . 123 . Trap Triggered on 0b10 40 | . 10 . . . 10 . . . . . . . . . . . . . . 10 . . 10 . . . . . . . . . . . Successful Hack 1144 | . 40 . . . 26 25 51 . . . 37 . . . . 106 15 20 . 39 88 . 41 . . . . 165 58 . 218 . 36 179 Select Force Hacks 310 | . 60 . . . 60 60 . . . . 30 . . . . 100 . . . . . . . . . . . . . . . . . . Disable Machine 5310 | . 345 . . 165 450 210 . . . . 1230 . . . . 615 60 . 45 480 330 . 585 . . . . 30 180 . 270 120 105 90 Anti-Garrison Action 250 | . . . . . . . . . . . . . . . . . . . . . . . . . . . . . . . 200 . . 50 Destroy Structure 6408 | . 137 . . 18 157 146 2 . 1 52 665 . . . . 828 58 28 18 988 266 6 774 . . . . 146 366 . 885 342 198 327 Advance Influence 150 | . . . . . . . . . . . . . . . . 150 . . . . . . . . . . . . . . . . . . Partial Spotted 375 | . . 30 . . 15 45 . . . 15 30 . . . . . . . . . 45 . 30 . . . . 15 30 . 75 15 15 15 Lose Combat Pursuer 1620 | . 30 45 . . . 120 . . . . 270 . . . . 30 . . . 45 195 . 135 . . . . . 15 . 225 270 30 210 Influence Decreases 38634 | . 370 690 891 992 1043 1655 1089 524 30 167 625 2422 918 3416 100 720 2312 873 805 969 1876 1038 519 1490 624 2112 190 568 987 2594 688 1526 1998 1813 Entered New Map 28916 | . . 484 459 842 247 737 899 524 . 66 1 2312 788 3416 . 126 1752 763 785 440 1228 1028 165 1320 484 2112 . 84 273 2594 . 1526 1728 1733 Time Decay 6120 | . 360 206 372 150 486 278 190 . 30 50 584 110 130 . 100 294 90 110 20 262 198 10 334 170 140 . 190 334 254 . 518 . 80 70 Lost Part 20 | . 10 . . . . . . . . . . . . . . . . . . . . . 10 . . . . . . . . . . . Lost Ally 311 | . . . 60 . 10 40 . . . 51 40 . . . . . 20 . . . . . 10 . . . . . 10 . 20 . 40 10 Purge Threat 3267 | . . . . . 300 600 . . . . . . . . . 300 450 . . 267 450 . . . . . . 150 450 . 150 . 150 . Squads Dispatched 285 | . 8 . . 1 14 7 . . 1 . 55 . . . . 24 1 2 . 9 3 . 24 . . . . 4 11 . 28 21 36 36 Investigation 49 | . 8 . . 1 8 5 . . . . 7 . . . . 7 . 2 . 3 1 . 1 . . . . 1 1 . 3 . . 1 Extermination 22 | . . . . . . . . . . . 5 . . . . 2 . . . 2 1 . 2 . . . . 1 1 . 8 . . . Reinforcement 47 | . . . . . 2 . . . 1 . 9 . . . . 4 1 . . 4 . . 5 . . . . 1 3 . 7 . 8 2 Assault 152 | . . . . . 3 2 . . . . 34 . . . . 11 . . . . 1 . 15 . . . . . 6 . 5 20 22 33 Garrison 15 | . . . . . 1 . . . . . . . . . . . . . . . . . 1 . . . . 1 . . 5 1 6 . Intercept . | . . . . . . . . . . . . . . . . . . . . . . . . . . . . . . . . . . . Searches Triggered . | . . . . . . . . . . . . . . . . . . . . . . . . . . . . . . . . . . . Unchained Authorized 7 | . . . . . . . . . . . . . . . . 1 1 . . 1 . . 1 . . . . . 1 . 2 . . . Construction Impeded 7 | . . . . . 1 . . . . . 2 . . . . 2 . . . . . . 1 . . . . . . . 1 . . . Haulers Reinforced 3 | . . . . . . . . . . . 1 . . . . . . . . 1 . . . . . . . . . . 1 . . . Active Scanning Responses . | . . . . . . . . . . . . . . . . . . . . . . . . . . . . . . . . . . . Cargo Convoy Interrupts 1 | . . . . . . . . . . . 1 . . . . . . . . . . . . . . . . . . . . . . . Stealth | -11 -10 -10 -10 -9 -8 -8 -8 -8 -6 -6 -6 -6 -6 -6 -5 -5 -5 -5 -5 -5 -4 -4 -4 -4 -4 -4 -3 -3 -3 -3 -2 -2 -1 -1 --------- Run | Yrd Mat Min Exi Min Mat Sto Rec Scr Fac Was Fac Low Low Dat Pro Fac Ext Cet Arc Hub Fac Was Fac Upp Upp Zhi Pro Res Arm Lab Res Tes Acc Com Distress Signals 38 | . . . . . 2 2 . . . . 2 . . . . 1 1 1 . 1 . . 3 . . . 3 6 1 . 4 2 4 5 Communications Jammed . | . . . . . . . . . . . . . . . . . . . . . . . . . . . . . . . . . . . Distress Signals . | . . . . . . . . . . . . . . . . . . . . . . . . . . . . . . . . . . . Times Spotted 1520 | . 32 16 68 14 46 47 1 32 5 6 218 14 8 4 20 89 18 12 7 52 17 4 118 19 12 . 18 22 114 . 117 109 78 183 Peak Tracking Total 22 | . 6 3 22 5 6 7 1 18 2 4 15 4 4 3 5 12 4 5 1 9 15 4 9 5 3 . 7 5 17 . 14 16 7 17 Tactical Retreats 46 | . 1 2 . . . 3 . . . . 8 . . . . 2 . . . 1 3 . 5 . . . . . 1 . 8 6 1 5 Traps | -11 -10 -10 -10 -9 -8 -8 -8 -8 -6 -6 -6 -6 -6 -6 -5 -5 -5 -5 -5 -5 -4 -4 -4 -4 -4 -4 -3 -3 -3 -3 -2 -2 -1 -1 ------- Run | Yrd Mat Min Exi Min Mat Sto Rec Scr Fac Was Fac Low Low Dat Pro Fac Ext Cet Arc Hub Fac Was Fac Upp Upp Zhi Pro Res Arm Lab Res Tes Acc Com Traps Triggered 22 | . 1 . . . . 1 . . 1 . 1 . . . . . 1 . . 1 2 . 1 . . . . . . . 3 . . 10 Indirectly 1 | . . . . . . . . . . . . . . . . . . . . 1 . . . . . . . . . . . . . . Trap Hack Attempts . | . . . . . . . . . . . . . . . . . . . . . . . . . . . . . . . . . . . Triggered . | . . . . . . . . . . . . . . . . . . . . . . . . . . . . . . . . . . . Disarmed 4 | . . . . . . . . . . . . . . . . . . . . . . . . . . . . 4 . . . . . . Reprogrammed 31 | . 7 . . . 1 . . . . . . . . . . . . . . 7 4 . 6 . . . . . . . . . . 6 Reused 4 | . 1 . . . 1 . . . . . . . . . . . . . . 1 . . 1 . . . . . . . . . . . Traps Extracted . | . . . . . . . . . . . . . . . . . . . . . . . . . . . . . . . . . . . Installed . | . . . . . . . . . . . . . . . . . . . . . . . . . . . . . . . . . . . Triggered 4 | . 1 . . . 1 . . . . . . . . . . . . . . 1 . . 1 . . . . . . . . . . . Objects Rigged 48 | . 1 . . . 3 . . . . . 20 . . . . 11 . . . . 13 . . . . . . . . . . . . . Exploded 10 | . 1 . . . 1 . . . . . 7 . . . . . . . . . 1 . . . . . . . . . . . . . Machines | -11 -10 -10 -10 -9 -8 -8 -8 -8 -6 -6 -6 -6 -6 -6 -5 -5 -5 -5 -5 -5 -4 -4 -4 -4 -4 -4 -3 -3 -3 -3 -2 -2 -1 -1 ---------- Run | Yrd Mat Min Exi Min Mat Sto Rec Scr Fac Was Fac Low Low Dat Pro Fac Ext Cet Arc Hub Fac Was Fac Upp Upp Zhi Pro Res Arm Lab Res Tes Acc Com Machines Disabled 391 | . 23 . 7 11 30 14 . 8 . . 87 . . 1 . 41 5 1 3 32 22 . 39 4 . . 3 2 12 2 18 10 7 9 Max in Single Turn 15 | . 2 . 1 2 2 3 . 1 . . 8 . . 1 . 6 1 1 1 9 15 . 7 2 . . 1 1 2 2 2 1 1 2 Garrison Access 20 | . . . . . 1 1 . . . . 4 . . . . 3 . . . 1 1 . 4 . . . . 3 . . 2 . . . Phase Generator 1 | . . . . . . . . . . . . . . . . . . . . . . . . . . . . . . . . . . 1 Network Hub 4 | . . . . . . . . . . . . . . . . . . . . 4 . . . . . . . . . . . . . . Energy Cycler 1 | . . . . . . . . . . . . . . . . . . . . . . . . . . . . . . . . . 1 . Machines Repaired . | . . . . . . . . . . . . . . . . . . . . . . . . . . . . . . . . . . . Machines Dismantled . | . . . . . . . . . . . . . . . . . . . . . . . . . . . . . . . . . . . Machines Sabotaged . | . . . . . . . . . . . . . . . . . . . . . . . . . . . . . . . . . . . Overloaded Fab Kills 1 | . . . . . . . . . . . . . . . . 1 . . . . . . . . . . . . . . . . . . Hacking | -11 -10 -10 -10 -9 -8 -8 -8 -8 -6 -6 -6 -6 -6 -6 -5 -5 -5 -5 -5 -5 -4 -4 -4 -4 -4 -4 -3 -3 -3 -3 -2 -2 -1 -1 --------- Run | Yrd Mat Min Exi Min Mat Sto Rec Scr Fac Was Fac Low Low Dat Pro Fac Ext Cet Arc Hub Fac Was Fac Upp Upp Zhi Pro Res Arm Lab Res Tes Acc Com Machines Accessed 209 | . 9 . 1 2 13 12 12 . . . 29 . 1 3 . 17 6 4 . 11 7 . 14 1 . 3 . 18 11 . 24 . 5 6 Terminals 137 | . 7 . . . 9 9 6 . . . 14 . . . . 10 6 4 . 10 6 . 7 . . . . 13 11 . 15 . 4 6 Fabricators 11 | . . . . . . . . . . . 5 . . . . 3 . . . . . . 1 . . . . 1 . . 1 . . . Repair Stations 1 | . . . . . . . . . . . . . . . . . . . . . . . . . . . . . . . 1 . . . Recycling Units 26 | . 2 . . . 2 2 6 . . . 5 . . . . 2 . . . . . . 1 . . . . . . . 5 . 1 . Scanalyzers 4 | . . . . . 1 . . . . . 1 . . . . . . . . . . . 1 . . . . 1 . . . . . . Garrison Access 19 | . . . . . 1 1 . . . . 4 . . . . 2 . . . 1 1 . 4 . . . . 3 . . 2 . . . Total Hacks 843 | . 31 . 1 2 45 36 37 . . . 99 . 1 25 . 43 16 13 . 49 67 . 59 1 . 13 . 85 56 . 113 . 12 39 Successful 486 | . 16 . 1 2 24 20 29 . . . 73 . 1 25 . 20 9 8 . 30 26 . 36 1 . 13 . 48 29 . 55 . 5 15 Failed 357 | . 15 . . . 21 16 8 . . . 26 . . . . 23 7 5 . 19 41 . 23 . . . . 37 27 . 58 . 7 24 Catastrophic 63 | . 5 . . . 3 3 . . . . . . . . . 5 1 1 . 1 8 . 5 . . . . 6 4 . 11 . 3 7 Database Lockouts . | . . . . . . . . . . . . . . . . . . . . . . . . . . . . . . . . . . . Manual 418 | . 26 . 1 . 30 24 14 . . . 52 . . . . 29 9 3 . 23 42 . 31 . . . . 40 34 . 47 . . 13 Terminals 643 | . 27 . . . 34 28 21 . . . 66 . . . . 32 16 13 . 48 65 . 43 . . . . 75 56 . 71 . 9 39 Fabricators 28 | . . . . . . . . . . . 12 . . . . 4 . . . . . . 5 . . . . 1 . . 6 . . . Repair Stations 1 | . . . . . . . . . . . . . . . . . . . . . . . . . . . . . . . 1 . . . Recycling Units 77 | . 4 . . . 6 6 16 . . . 10 . . . . 4 . . . . . . 1 . . . . . . . 27 . 3 . Scanalyzers 10 | . . . . . 3 . . . . . 3 . . . . . . . . . . . 1 . . . . 3 . . . . . . Garrison Access 41 | . . . . . 2 2 . . . . 8 . . . . 3 . . . 1 2 . 9 . . . . 6 . . 8 . . . Terminal Hacks 266 | . 6 . 1 2 10 11 11 . . . 30 . 1 25 . 4 8 8 . 19 15 . 18 1 . 13 . 27 18 . 21 . 5 12 Record 24 | . . . . . . . . . . . . . . 11 . . . 7 . . . . . . . 5 . 1 . . . . . . Part Schematic 18 | . . . . . . . . . . . 3 . . 11 . 1 . . . . 1 . 1 . . . . . . . 1 . . . Robot Schematic 1 | . . . . . . . 1 . . . . . . . . . . . . . . . . . . . . . . . . . . . Robot Analysis 14 | . . . . . . . 4 . . . . . . . . . . . . . . . 1 . . 4 . 3 . . 2 . . . Prototype ID Bank 21 | . . . . . . . 2 . . . 4 . . 3 . . . . . 1 . . . . . 4 . 2 3 . 1 . . 1 Open Door 18 | . . . . 2 . 2 . . . . . . 1 . . . 4 1 . . . . . 1 . . . 1 3 . . . 3 . Level Access Points 7 | . . . . . . . . . . . 1 . . . . . . . . 1 1 . 1 . . . . 1 1 . . . . 1 Branch Access Points 12 | . 1 . . . 1 1 . . . . 1 . . . . 1 . . . 1 . . 3 . . . . 1 . . 1 . 1 . Emergency Access Points 1 | . . . . . . . . . . . . . . . . . . . . 1 . . . . . . . . . . . . . . Machine Index 5 | . . . . . . . . . . . 1 . . . . . . . . . . . 1 . . . . 1 1 . . . . 1 Terminal Index 10 | . . . . . . 1 1 . . . . . . . . . . . . 1 1 . 2 . . . . 1 1 . 1 . . 1 Fabricator Index 3 | . . . . . . . . . . . . . . . . . . . . . . . 1 . . . . 1 . . . . . 1 Recycling Unit Index 2 | . 1 . . . . . . . . . . . . . . . . . . . . . . . . . . . . . . . . 1 Scanalyzer Index 1 | . . . . . . . . . . . . . . . . . . . . . . . . . . . . 1 . . . . . . Garrison Index 2 | . . . . . . . . . . . . . . . . . . . . . . . . . . . . 1 . . . . . 1 Alert Level 14 | . . . . . 1 1 1 . . . . . . . . . 1 . . 2 2 . . . . . . 1 3 . 1 . . 1 Unreport Threat 23 | . . . . . 2 4 . . . . . . . . . 2 3 . . 3 3 . . . . . . 1 3 . 1 . 1 . Locate Traps 19 | . . . . . 1 . . . . . 2 . . . . . . . . 2 5 . 4 . . . . 3 . . 1 . . 1 Disarm Traps 2 | . . . . . . . . . . . . . . . . . . . . . . . . . . . . 2 . . . . . . Reprogram Traps 12 | . 4 . . . 2 . . . . . . . . . . . . . . 2 1 . 2 . . . . . . . . . . 1 Dispatch Records 1 | . . . . . . . . . . . 1 . . . . . . . . . . . . . . . . . . . . . . . Surveillance Status 1 | . . . . . . . . . . . 1 . . . . . . . . . . . . . . . . . . . . . . . Transport Status 1 | . . . . . . . . . . . 1 . . . . . . . . . . . . . . . . . . . . . . . Investigation Status 2 | . . . . . . . . . . . . . . . . . . . . . . . 1 . . . . . . . 1 . . . Extermination Status 2 | . . . . . . . . . . . . . . . . . . . . . . . . . . . . 1 . . 1 . . . Reinforcement Status 2 | . . . . . . . . . . . 1 . . . . . . . . . . . . . . . . . . . 1 . . . Recall Investigation 1 | . . . . . . . . . . . 1 . . . . . . . . . . . . . . . . . . . . . . . Recall Extermination 5 | . . . . . . . . . . . 4 . . . . . . . . . . . . . . . . . . . 1 . . . Recall Reinforcements 4 | . . . . . . . . . . . 2 . . . . . . . . 1 . . . . . . . . . . 1 . . . Hauler Manifests 13 | . . . . . 2 1 . . . . 3 . . . . . . . . 1 1 . 1 . . . . 1 1 . 2 . . . Registered Components 6 | . . . . . . . 1 . . . 1 . . . . . . . . 1 . . . . . . . 1 . . 1 . . 1 Registered Prototypes 6 | . . . . . . 1 . . . . . . . . . . . . . 2 . . . . . . . 1 1 . 1 . . . Zone Layout 11 | . . . . . 1 . 1 . . . 3 . . . . . . . . . . . . . . . . 2 1 . 3 . . . Proto ID Catalog 1 | . . . 1 . . . . . . . . . . . . . . . . . . . . . . . . . . . . . . . Disengage Seal 1 | . . . . . . . . . . . . . . . . . . . . . . . . . . . . . . . . . . 1 Fabricator Hacks 17 | . . . . . . . . . . . 11 . . . . . . . . . . . 2 . . . . 1 . . 3 . . . Network Status 3 | . . . . . . . . . . . 1 . . . . . . . . . . . . . . . . 1 . . 1 . . . Load Schematic 7 | . . . . . . . . . . . 5 . . . . . . . . . . . 1 . . . . . . . 1 . . . Build 7 | . . . . . . . . . . . 5 . . . . . . . . . . . 1 . . . . . . . 1 . . . Repair Station Hacks 1 | . . . . . . . . . . . . . . . . . . . . . . . . . . . . . . . 1 . . . Refit 1 | . . . . . . . . . . . . . . . . . . . . . . . . . . . . . . . 1 . . . Recycling Unit Hacks 25 | . 1 . . . 1 2 6 . . . 5 . . . . 1 . . . . . . 1 . . . . . . . 8 . . . Retrieve Components 25 | . 1 . . . 1 2 6 . . . 5 . . . . 1 . . . . . . 1 . . . . . . . 8 . . . Scanalyzer 9 | . . . . . 2 . . . . . 3 . . . . . . . . . . . 1 . . . . 3 . . . . . . Insert Component 3 | . . . . . . . . . . . 1 . . . . . . . . . . . . . . . . 2 . . . . . . Analyze 2 | . . . . . . . . . . . 1 . . . . . . . . . . . . . . . . 1 . . . . . . Retrieve Study 4 | . . . . . 2 . . . . . 1 . . . . . . . . . . . 1 . . . . . . . . . . . Garrison Access Hacks 18 | . . . . . 1 1 . . . . 4 . . . . 2 . . . 1 1 . 4 . . . . 3 . . 1 . . . Seal Access 18 | . . . . . 1 1 . . . . 4 . . . . 2 . . . 1 1 . 4 . . . . 3 . . 1 . . . Unauthorized Hacks 148 | . 9 . . . 10 5 12 . . . 20 . . . . 13 1 . . 10 10 . 10 . . . . 14 11 . 20 . . 3 Terminals 123 | . 7 . . . 8 3 6 . . . 15 . . . . 10 1 . . 10 10 . 10 . . . . 14 11 . 15 . . 3 Assimilate 20 | . . . . . 1 . . . . . 4 . . . . 1 . . . 3 2 . 1 . . . . 1 3 . 3 . . 1 Botnet 81 | . 5 . . . 5 3 5 . . . 8 . . . . 7 1 . . 6 6 . 6 . . . . 10 7 . 10 . . 2 Detonate 11 | . 2 . . . 2 . . . . . 3 . . . . 1 . . . . 1 . 1 . . . . 1 . . . . . . Operators 11 | . . . . . . . 1 . . . . . . . . 1 . . . 1 1 . 2 . . . . 2 1 . 2 . . . Fabricators 3 | . . . . . . . . . . . . . . . . 3 . . . . . . . . . . . . . . . . . . Haulers 1 | . . . . . . . . . . . . . . . . 1 . . . . . . . . . . . . . . . . . . Overload 2 | . . . . . . . . . . . . . . . . 2 . . . . . . . . . . . . . . . . . . Repair Stations . | . . . . . . . . . . . . . . . . . . . . . . . . . . . . . . . . . . . Recycling Units 21 | . 2 . . . 2 2 6 . . . 5 . . . . . . . . . . . . . . . . . . . 4 . . . Reject 14 | . . . . . . . 6 . . . 4 . . . . . . . . . . . . . . . . . . . 4 . . . Tunnel 7 | . 2 . . . 2 2 . . . . 1 . . . . . . . . . . . . . . . . . . . . . . . Scanalyzers . | . . . . . . . . . . . . . . . . . . . . . . . . . . . . . . . . . . . Garrison Access 1 | . . . . . . . . . . . . . . . . . . . . . . . . . . . . . . . 1 . . . Jam 1 | . . . . . . . . . . . . . . . . . . . . . . . . . . . . . . . 1 . . . Data Cores Recovered 6 | . . . . . 1 . . . . . . . . . . 1 2 . . . . . . . . . . 1 . . . . . 1 Used 3 | . . . . . . . . . . . . . . . . 1 1 . . . . . . . . . . . . . . . . 1 Hacking Detections 129 | . 6 . . . 11 11 6 . . . 21 . . . . 12 3 2 . 8 6 . 6 . . . . 11 5 . 16 . 2 3 Full Trace Events 41 | . 6 . . . 9 3 1 . . . 6 . . . . 5 . 2 . 3 1 . 1 . . . . . 1 . 2 . . 1 Feedback Events 3 | . . . . . . 1 1 . . . . . . . . . . 1 . . . . . . . . . . . . . . . . Corruption 3 | . . . . . . 1 1 . . . . . . . . . . 1 . . . . . . . . . . . . . . . . Feedback Blocked . | . . . . . . . . . . . . . . . . . . . . . . . . . . . . . . . . . . . Robot Schematics Acquired 2 | . . . . . . . 1 . . . . . . . . . . . . . . . . . . . . . . . . 1 . . Robots Built . | . . . . . . . . . . . . . . . . . . . . . . . . . . . . . . . . . . . Authchips . | . . . . . . . . . . . . . . . . . . . . . . . . . . . . . . . . . . . Time . | . . . . . . . . . . . . . . . . . . . . . . . . . . . . . . . . . . . Total Robot Build Rating . | . . . . . . . . . . . . . . . . . . . . . . . . . . . . . . . . . . . Part Schematics Acquired 74 | . . . . . . . . 1 1 13 26 . . 11 . 6 . . . 2 2 . 5 . . . . 3 . . 1 3 . . Parts Built 10 | . . . . . . . . . . . 7 . . . . . . . . . . . 2 . . . . . . . 1 . . . Authchips . | . . . . . . . . . . . . . . . . . . . . . . . . . . . . . . . . . . . Time 479 | . . . . . . . . . . . 341 . . . . . . . . . . . 64 . . . . . . . 74 . . . Total Part Build Rating 57 | . . . . . . . . . . . 32 . . . . . . . . . . . 16 . . . . . . . 9 . . . Part Studies Acquired 4 | . . . . . 2 . . . . . 1 . . . . . . . . . . . 1 . . . . . . . . . . . Parts Repaired . | . . . . . . . . . . . . . . . . . . . . . . . . . . . . . . . . . . . Time . | . . . . . . . . . . . . . . . . . . . . . . . . . . . . . . . . . . . Parts Recycled . | . . . . . . . . . . . . . . . . . . . . . . . . . . . . . . . . . . . Recycled Matter . | . . . . . . . . . . . . . . . . . . . . . . . . . . . . . . . . . . . Retrieved Matter . | . . . . . . . . . . . . . . . . . . . . . . . . . . . . . . . . . . . Retrieved Components 132 | . 7 . . . 5 18 11 . . . 17 . . . . 10 . . . . . . 1 . . . . . . . 63 . . . Parts Scanalyzed 2 | . . . . . . . . . . . 1 . . . . . . . . . . . . . . . . 1 . . . . . . Part Schematics Acquired 2 | . . . . . . . . . . . 1 . . . . . . . . . . . . . . . . 1 . . . . . . Parts Damaged . | . . . . . . . . . . . . . . . . . . . . . . . . . . . . . . . . . . . Bothacking | -11 -10 -10 -10 -9 -8 -8 -8 -8 -6 -6 -6 -6 -6 -6 -5 -5 -5 -5 -5 -5 -4 -4 -4 -4 -4 -4 -3 -3 -3 -3 -2 -2 -1 -1 ------------ Run | Yrd Mat Min Exi Min Mat Sto Rec Scr Fac Was Fac Low Low Dat Pro Fac Ext Cet Arc Hub Fac Was Fac Upp Upp Zhi Pro Res Arm Lab Res Tes Acc Com Used RIF Installer . | . . . . . . . . . . . . . . . . . . . . . . . . . . . . . . . . . . . Robots Hacked . | . . . . . . . . . . . . . . . . . . . . . . . . . . . . . . . . . . . Non-combat . | . . . . . . . . . . . . . . . . . . . . . . . . . . . . . . . . . . . Combat . | . . . . . . . . . . . . . . . . . . . . . . . . . . . . . . . . . . . Robot Hacks Applied . | . . . . . . . . . . . . . . . . . . . . . . . . . . . . . . . . . . . Relay Couplers Released . | . . . . . . . . . . . . . . . . . . . . . . . . . . . . . . . . . . . Fabnet Peak Effective % . | . . . . . . . . . . . . . . . . . . . . . . . . . . . . . . . . . . . Robots Rewired . | . . . . . . . . . . . . . . . . . . . . . . . . . . . . . . . . . . . Allies Hacked . | . . . . . . . . . . . . . . . . . . . . . . . . . . . . . . . . . . . Hacks Repelled . | . . . . . . . . . . . . . . . . . . . . . . . . . . . . . . . . . . . Allies | -11 -10 -10 -10 -9 -8 -8 -8 -8 -6 -6 -6 -6 -6 -6 -5 -5 -5 -5 -5 -5 -4 -4 -4 -4 -4 -4 -3 -3 -3 -3 -2 -2 -1 -1 -------- Run | Yrd Mat Min Exi Min Mat Sto Rec Scr Fac Was Fac Low Low Dat Pro Fac Ext Cet Arc Hub Fac Was Fac Upp Upp Zhi Pro Res Arm Lab Res Tes Acc Com Total Allies 63 | . . 5 . . 1 12 . . . 19 4 . . . . 1 7 . . 2 . . 1 . . . . 1 2 . 3 . 3 2 Largest Group 19 | . . 5 4 . 1 10 10 10 . 19 2 . . . . 1 6 . . 2 . . 1 . . . . 1 3 . 3 . 3 1 Highest-Rated Group 684 | . . 85 71 . 10 173 162 162 . 684 36 . . . . 26 327 . . 36 . . 45 . . . . 45 97 . 116 . 379 132 Highest-Rated Ally 159 | . . 31 31 . 10 31 24 24 . 50 26 . . . . 26 159 . . 26 . . 45 . . . . 45 45 . 45 . 135 132 Total Orders 13 | . . . . . . . . 3 . . 6 . . . . . . . . 1 . . . . . . . . 2 . . . . 1 STAY 8 | . . . . . . . . 1 . . 4 . . . . . . . . 1 . . . . . . . . 1 . . . . 1 ROAM 1 | . . . . . . . . 1 . . . . . . . . . . . . . . . . . . . . . . . . . . FOLLOW 4 | . . . . . . . . 1 . . 2 . . . . . . . . . . . . . . . . . 1 . . . . . Ally Attacks 183 | . . . 2 . . 12 3 88 . 74 . . . . . . 2 . . . . . . . . . . . . . . . 2 . Total Damage 4317 | . . . 31 . . 228 49 965 . 2892 . . . . . . 67 . . . . . . . . . . . . . . . 85 . Kills 18 | . . . 1 . . 1 . 9 . 5 . . . . . . 1 . . . . . . . . . . . . . . . 1 . Allies Corrupted 3 | . . . . . . . . . . . . . . . . 1 . . . . . . . . . . . . . . 2 . . . Allies Melted 1 | . . . . . . 1 . . . . . . . . . . . . . . . . . . . . . . . . . . . . Intel | -11 -10 -10 -10 -9 -8 -8 -8 -8 -6 -6 -6 -6 -6 -6 -5 -5 -5 -5 -5 -5 -4 -4 -4 -4 -4 -4 -3 -3 -3 -3 -2 -2 -1 -1 ------- Run | Yrd Mat Min Exi Min Mat Sto Rec Scr Fac Was Fac Low Low Dat Pro Fac Ext Cet Arc Hub Fac Was Fac Upp Upp Zhi Pro Res Arm Lab Res Tes Acc Com Active Infowar (turns) 20366 | . 758 434 826 306 1264 606 393 460 69 1622 2655 228 273 68 219 851 212 225 44 380 407 28 1127 340 294 67 381 758 686 97 1437 489 890 1472 Optics 3 | . . . . . . . . . . . . . . . . . . . . . . . . . . . . . 2 . . . . 1 IFF 7 | . . . . . . . . . . . . . . . . . . . . . . . 7 . . . . . . . . . . . Zeronet 2 | . . . . . . . . . . . . . . . . . . . . . . . 2 . . . . . . . . . . . Structural 20366 | . 758 434 826 306 1264 606 393 460 69 1622 2655 228 273 68 219 851 212 225 44 380 407 28 1127 340 294 67 381 758 686 97 1437 489 890 1472 Traps 750 | . . . . . 660 90 . . . . . . . . . . . . . . . . . . . . . . . . . . . . T.N.C. 4130 | . 563 300 . . 812 606 393 183 . . 320 . . . . . . . . . . . . . . . . . . . . . 651 302 ECM 2 | . . . . . . . . . . . . . . . . . . . . . . . . . . . . . 2 . . . . . Robot Analysis Total 14 | . . . . . . . 4 . . . . . . . . . . . . . . . 1 . . 4 . 3 . . 2 . . . Derelict Logs Recovered 13 | . . 1 . 2 . . . . . . . 2 2 . 1 . . . . . . . . 2 3 . . . . . . . . . Drone Launches . | . . . . . . . . . . . . . . . . . . . . . . . . . . . . . . . . . . . Drone Recoveries . | . . . . . . . . . . . . . . . . . . . . . . . . . . . . . . . . . . . Exploration | -11 -10 -10 -10 -9 -8 -8 -8 -8 -6 -6 -6 -6 -6 -6 -5 -5 -5 -5 -5 -5 -4 -4 -4 -4 -4 -4 -3 -3 -3 -3 -2 -2 -1 -1 ------------- Run | Yrd Mat Min Exi Min Mat Sto Rec Scr Fac Was Fac Low Low Dat Pro Fac Ext Cet Arc Hub Fac Was Fac Upp Upp Zhi Pro Res Arm Lab Res Tes Acc Com Turns Passed 21737 | 39 898 434 1029 306 1269 606 393 460 69 1622 3441 228 273 68 219 851 212 225 44 578 407 28 1127 340 294 67 381 758 686 97 1437 489 890 1472 Spaces Moved 40851 | 33 1138 623 894 635 1724 889 548 1177 166 544 7569 716 873 156 685 2068 472 631 85 1178 520 63 2124 787 699 162 871 1609 1339 159 4096 1065 1727 2826 Core 2 | 2 . . . . . . . . . . . . . . . . . . . . . . . . . . . . . . . . . . Treads . | . . . . . . . . . . . . . . . . . . . . . . . . . . . . . . . . . . . Legs . | . . . . . . . . . . . . . . . . . . . . . . . . . . . . . . . . . . . Wheels 124 | 31 93 . . . . . . . . . . . . . . . . . . . . . . . . . . . . . . . . . Hover . | . . . . . . . . . . . . . . . . . . . . . . . . . . . . . . . . . . . Flight 40725 | . 1045 623 894 635 1724 889 548 1177 166 544 7569 716 873 156 685 2068 472 631 85 1178 520 63 2124 787 699 162 871 1609 1339 159 4096 1065 1727 2826 Fastest Speed 14 | 50 37 31 31 31 28 28 28 28 28 28 26 26 26 26 26 14 26 26 26 26 26 26 26 37 37 37 37 18 18 18 18 18 18 18 Average Speed 26 | 91 43 31 31 31 29 28 28 28 28 28 27 26 26 26 26 25 26 26 26 26 26 26 30 37 37 37 37 26 18 18 21 18 18 18 Slowest Speed 120 | 100 120 37 31 31 31 28 28 28 28 28 28 26 26 26 26 26 26 26 26 26 26 26 120 37 37 37 37 37 21 18 101 18 18 18 Overloaded Moves 24 | . . . . . . . . . . . . . . . . 24 . . . . . . . . . . . . . . . . . . Propulsion Burnouts . | . . . . . . . . . . . . . . . . . . . . . . . . . . . . . . . . . . . Robots Hopped 131 | . 4 11 . 12 4 1 7 . 1 . 33 . . . . 6 3 . . 3 2 . 5 1 . . . 5 1 . 11 2 4 15 Potential Cave-ins 99 | . . . . . . 14 . . . . 2 . . . . 2 . . . 2 . . 5 . . . . . . . . . . 74 Cave-ins Triggered 12 | . . . . . . 2 . . . . . . . . . . . . . . . . 1 . . . . . . . . . . 9 Teleports 1 | . . . . . . . . . . . . . . . . . . . . . . . . . . . . . 1 . . . . . Exploration Rate (%) 77 | 3 96 98 92 95 96 96 97 59 4 95 94 92 94 82 97 51 75 95 74 96 21 76 68 96 96 63 95 53 77 95 84 93 53 67 Regions Visited 34 Branch Regions 22 Pre-discovered Areas 15 | . 2 . . . 2 3 . . . . 1 1 . 1 . . . . . . . . . . 2 3 . . . . . . . . Known Exits Taken 25 | . 1 . . . 1 1 1 1 . . 1 1 1 1 1 1 1 1 1 1 . . 1 1 1 1 1 1 . 1 1 1 1 . Unknown Exits Taken 5 | 1 . 1 1 1 . . . . . . . . . . . . . . . . . . . . . . . . 1 . . . . . Scrap Searched 26 | . . 1 . 2 . . . 7 . . . 2 2 . 4 . . . . . . . . 3 3 . 2 . . . . . . . Spaces Dug 675 | . 2 . . . 44 36 . 6 . 4 50 12 12 . 20 35 . . . 7 24 . 73 16 20 . . 46 7 . 142 42 2 75 Terrain Destroyed 4649 | . 133 . 65 25 184 171 2 33 1 8 746 40 33 4 71 459 31 14 11 777 174 3 441 54 49 . 21 84 186 . 310 133 66 320 Melee . | . . . . . . . . . . . . . . . . . . . . . . . . . . . . . . . . . . . Projectile 2462 | . . . 65 25 159 127 2 33 1 8 206 40 33 4 71 180 31 14 11 129 32 3 197 54 49 . 21 84 172 . 310 133 2 266 AOE 2187 | . 133 . . . 25 44 . . . . 540 . . . . 279 . . . 648 142 . 244 . . . . . 14 . . . 64 54 Terrain Rammed . | . . . . . . . . . . . . . . . . . . . . . . . . . . . . . . . . . . . Walls Destroyed . | . . . . . . . . . . . . . . . . . . . . . . . . . . . . . . . . . . . Machines Disabled . | . . . . . . . . . . . . . . . . . . . . . . . . . . . . . . . . . . . Actions | -11 -10 -10 -10 -9 -8 -8 -8 -8 -6 -6 -6 -6 -6 -6 -5 -5 -5 -5 -5 -5 -4 -4 -4 -4 -4 -4 -3 -3 -3 -3 -2 -2 -1 -1 --------- Run | Yrd Mat Min Exi Min Mat Sto Rec Scr Fac Was Fac Low Low Dat Pro Fac Ext Cet Arc Hub Fac Was Fac Upp Upp Zhi Pro Res Arm Lab Res Tes Acc Com Total 52008 | 38 1351 787 1647 731 2483 1244 779 1306 188 2011 8988 762 922 184 731 2415 566 699 109 1475 793 74 2643 843 739 168 939 1954 1821 225 4729 1410 2352 3902 Wait 5962 | . 71 84 594 70 573 193 232 67 . 1428 659 6 16 9 1 80 9 27 . 87 237 . 104 3 2 . . 256 105 58 225 27 354 385 Move 40553 | 32 1129 600 893 611 1715 884 533 1176 164 543 7503 715 872 155 684 2056 462 630 84 1171 516 62 2112 784 698 161 870 1598 1336 158 4073 1060 1719 2794 Hop 120 | . 4 11 . 11 4 1 7 . 1 . 32 . . . . 5 3 . . 3 2 . 4 1 . . . 5 1 . 10 2 3 10 Pick Up 71 | . 2 3 4 . 1 1 . 1 1 . 9 4 1 1 . . . . . 5 . . 5 1 . 1 . 1 1 1 10 2 6 10 Fast Attach 176 | 6 4 4 4 2 9 11 1 3 . 1 31 . . 1 . . 1 . 1 2 . . 15 . 1 2 1 6 21 4 10 18 5 12 Attach 17 | . . . . . . . . . . . 4 . . . . . 1 . . . . . . . . . . 1 1 . 2 . 3 5 Detach 49 | . . 1 . 2 1 . . 2 . . 16 . . . . . 1 . . . . . 3 . . 1 . 1 4 . 6 2 4 5 Swap 65 | . 10 5 . . 7 1 . . . 2 13 . . 1 . 1 . . . 4 . . 4 . . 1 . 6 2 . 5 2 . 1 Drop 190 | . 4 8 8 . 7 12 . 1 1 1 30 2 1 2 . 1 1 . . 7 . . 21 . . 2 . 6 10 1 16 19 8 21 Fire 3658 | . 117 46 91 29 143 99 3 47 12 23 558 30 26 15 43 217 44 40 21 145 17 2 238 47 31 . 53 66 242 3 296 212 201 501 Melee . | . . . . . . . . . . . . . . . . . . . . . . . . . . . . . . . . . . . Ram . | . . . . . . . . . . . . . . . . . . . . . . . . . . . . . . . . . . . Kick . | . . . . . . . . . . . . . . . . . . . . . . . . . . . . . . . . . . . Crush . | . . . . . . . . . . . . . . . . . . . . . . . . . . . . . . . . . . . Escape Stasis 109 | . . . . . . 2 . . . . . . . . . . 34 . . . 15 . 18 . . . . . . . 1 33 . 6 Rewire . | . . . . . . . . . . . . . . . . . . . . . . . . . . . . . . . . . . . Trap . | . . . . . . . . . . . . . . . . . . . . . . . . . . . . . . . . . . . Miscellaneous 1038 | . 10 25 53 6 23 40 3 9 9 13 133 5 6 . 3 55 10 2 3 51 6 10 119 7 7 . 15 8 98 . 75 33 49 152 Route ------- -11/Scrapyard -10/Materials (discovered 5 exits: [*Mat x3] / *Min x2) -10/Mines (discovered 4 exits: [*Mat x2] / *Exi / [*Sub]) -10/Exiles (discovered 2 exits: *Min x2) -9/Mines (discovered 2 exits: *Mat x2) -8/Materials (discovered 4 exits: *Fac x3 / *Sto) -8/Storage (discovered 2 exits: *Fac / *Rec) -8/Recycling (discovered 2 exits: *Fac / *Scr) -8/Scraptown -6/Factory -6/Waste -6/Factory (discovered 6 exits: *Fac x4 / *Low x2) -6/Lower Caves -6/Lower Caves (discovered 2 exits: *Fac / *Dat) -6/Data Miner -5/Proximity Caves -5/Factory (discovered 7 exits: *Fac x3 / *Upp x2 / *Ext x2) -5/Extension (discovered 3 exits: *Fac x2 / *Cet) -5/Cetus (discovered 3 exits: *Fac x2 / *Arc) -5/Archives (discovered 3 exits: *Fac / *Hub x2) -5/Hub_04(d) (discovered 4 exits: *Fac x4) -4/Factory (discovered 5 exits: Res x4 / *Upp) -4/Waste -4/Factory (discovered 6 exits: *Res x4 / *Upp x2) -4/Upper Caves -4/Upper Caves (discovered 2 exits: *Res / *Zhi) -4/Zhirov -3/Proximity Caves -3/Research (discovered 6 exits: *Res x3 / *Arm / *Qua x2) -3/Armory (discovered 3 exits: *Res x2 / *Lab) -3/Lab -2/Research (discovered 4 exits: *Acc x2 / *Tes x2) -2/Testing -1/Access (discovered 2 exits: Sur / *Com) -1/Command (discovered 2 exits: *Sur x2) History --------- Turn | Location | Event 1 | -11/Scrapyard | Upgraded with Propulsion slot (x1) 1 | -11/Scrapyard | Upgraded with Utility slot (x1) 1 | -11/Scrapyard | Upgraded with Weapon slot (x2) 12 | -11/Scrapyard | Discovered new exit (range 15) 40 | -11/Scrapyard | Entered Materials 65 | -10/Materials | Discovered new exit (range 10) 237 | -10/Materials | Discovered new exit (range 5) 277 | -10/Materials | Discovered new exit (range 8) 307 | -10/Materials | Build established: Gunner 437 | -10/Materials | Reached level 2 533 | -10/Materials | Upgraded with Propulsion slot (x1) 533 | -10/Materials | Upgraded with Utility slot (x1) 534 | -10/Materials | Identified exit to Mines 536 | -10/Materials | Discovered new exit (range 10) 543 | -10/Materials | Core integrity fell below 50% 716 | -10/Materials | Reached level 3 885 | -10/Materials | Reached level 4 938 | -10/Materials | Entered Mines 976 | -10/Mines | Upgraded with Propulsion slot (x1) 1019 | -10/Mines | Received a Rocket Launcher from a helpful Derelict 1077 | -10/Mines | Reached level 5 1105 | -10/Mines | Discovered new exit (range 6) 1155 | -10/Mines | Deemed a non-threat by the Exiles lab entrance 1155 | -10/Mines | Discovered new exit (range 5) 1175 | -10/Mines | A weapon hastily lodged in a ceiling crevice suddenly fell to the ground 1192 | -10/Mines | Discovered new exit (range 15) 1204 | -10/Mines | Core integrity fell below 20% 1246 | -10/Mines | Discovered new exit (range 9) 1279 | -10/Mines | Build established: Scavenger-Sprinter 1300 | -10/Mines | Assisted by bots powering up and referring to "LRC-V3" 1372 | -10/Mines | Entered Exiles 1372 | -10/Exiles | Accompanied by 4 allies 1380 | -10/Exiles | Met 8R-AWN 1385 | -10/Exiles | Met EX-HEX 1395 | -10/Exiles | Met EX-BIN 1399 | -10/Exiles | Aligned with FarCom system 1399 | -10/Exiles | Given EX-Vault access code 1402 | -10/Exiles | Led the pair of lost Derelicts to a safe place 1407 | -10/Exiles | Opened EX-Vault 1408 | -10/Exiles | Upgraded with Weapon slot (x1) 1410 | -10/Exiles | Found Latent Energy Streamer 1412 | -10/Exiles | Found XL Autogun Array 1421 | -10/Exiles | Warned to stay clear of 0b10 Research branches 1427 | -10/Exiles | Exiles lab attacked by MAIN.C 1463 | -10/Exiles | Upgraded with Utility slot (x1) 1514 | -10/Exiles | Discovered new exit (range 16) 1528 | -10/Exiles | Lost 3 allies 1594 | -10/Exiles | Discovered new exit (range 15) 1657 | -10/Exiles | Reached level 6 1662 | -10/Exiles | Upgraded with Utility slot (x1) 1698 | -10/Exiles | Destroyed 13 combat bots 1767 | -10/Exiles | Destroyed 23 combat bots 1778 | -10/Exiles | Reached level 7 1841 | -10/Exiles | Destroyed 20 combat bots 2401 | -10/Exiles | Left Exiles lab with XL Autogun Array 2401 | -10/Exiles | Entered Mines 2422 | -9/Mines | Reached level 8 2440 | -9/Mines | Met a Derelict shopkeep closing up shop 2537 | -9/Mines | Discovered new exit (range 12) 2548 | -9/Mines | Discovered new exit (range 9) 2550 | -9/Mines | Learned location of 1 exit from Materials 2558 | -9/Mines | Met a Derelict who couldn't figure out how to use a Trap Extractor 2602 | -9/Mines | Found a hidden stash of uninstalled traps 2604 | -9/Mines | Learned Materials terminal intel 2646 | -9/Mines | Reached level 9 2655 | -9/Mines | Destroyed 10 combat bots 2705 | -9/Mines | Build established: Scavenger-Scout 2707 | -9/Mines | Entered Materials 2708 | -8/Materials | Identified exit to Storage 2709 | -8/Materials | Identified exit to Factory 2709 | -8/Materials | Reached level 10 2710 | -8/Materials | Loaded intel: 12 terminal locations 2800 | -8/Materials | Upgraded with Utility slot (x2) 2835 | -8/Materials | Reached level 11 2842 | -8/Materials | Upgraded with Utility slot (x1) 2853 | -8/Materials | Discovered exit to Factory (range 11) 2954 | -8/Materials | Reached level 12 2955 | -8/Materials | Garrison activated, responded to threat 2979 | -8/Materials | Destroyed 10 combat bots 3107 | -8/Materials | First assault squad dispatched 3161 | -8/Materials | Reached level 13 3163 | -8/Materials | Discovered exit to Factory (range 18) 3166 | -8/Materials | Upgraded with Utility slot (x1) 3191 | -8/Materials | Destroyed 9 combat bots 3580 | -8/Materials | Build established: Scout 3976 | -8/Materials | Entered Storage 3979 | -8/Storage | Learned location of Armory (-3) 4085 | -8/Storage | Destroyed 9 combat bots 4094 | -8/Storage | Met a pair of Derelict thieves 4130 | -8/Storage | Discovered exit to Factory (range 16) 4132 | -8/Storage | Crushed by falling debris 4132 | -8/Storage | Crushed by falling debris 4133 | -8/Storage | Core integrity fell below 50% 4144 | -8/Storage | Reached level 14 4156 | -8/Storage | Identified exit to Recycling 4315 | -8/Storage | Used back door to open Recycling access 4364 | -8/Storage | Build established: Scavenger-Scout 4372 | -8/Storage | Assisted by bots powering up and referring to "LRC-V3" 4444 | -8/Storage | Destroyed 20 combat bots 4582 | -8/Storage | Entered Recycling 4582 | -8/Recycling | Accompanied by 10 allies 4667 | -8/Recycling | Build established: Commander-Scout 4672 | -8/Recycling | Reached level 15 4689 | -8/Recycling | Upgraded with Utility slot (x1) 4722 | -8/Recycling | Discovered new exit (range 8) 4726 | -8/Recycling | Identified exit to Factory 4729 | -8/Recycling | Scanned before Scraplab entrance 4840 | -8/Recycling | Discovered new exit (range 11) 4859 | -8/Recycling | Entered Scraplab 4864 | -8/Recycling | Identified exit to Scraptown 4975 | -8/Recycling | Entered Scraptown 4975 | -8/Scraptown | Accompanied by 10 allies 5006 | -8/Scraptown | Heard Great Nut preacher, LISTEN AND RECITE! 5038 | -8/Scraptown | Discovered exit to Factory (range 5) 5056 | -8/Scraptown | Visited SPCMW 5068 | -8/Scraptown | Visited The Evicted 5080 | -8/Scraptown | Visited Red Mages 5097 | -8/Scraptown | Visited Junk Repository 5155 | -8/Scraptown | Visited Bundlers 5173 | -8/Scraptown | Visited Science Testing Area 5179 | -8/Scraptown | Visited Cyclists 5221 | -8/Scraptown | Turned away by UFD registrar 5275 | -8/Scraptown | Build established: Commander-Sprinter 5335 | -8/Scraptown | Attacked by Scraptown defenders 5400 | -8/Scraptown | Destroyed 12 combat bots 5411 | -8/Scraptown | Lost 6 allies 5432 | -8/Scraptown | Destroyed 8 combat bots 5435 | -8/Scraptown | Core integrity fell below 20% 5435 | -8/Scraptown | Entered Factory 5436 | -6/Factory | Core integrity fell below 50% 5436 | -6/Factory | Core integrity fell below 20% 5437 | -6/Factory | Reached level 16 5504 | -6/Factory | Sucked down chute 5504 | -6/Factory | Entered Waste 5506 | -6/Waste | Spotted C-40 Crusher 5511 | -6/Waste | Warlord forces began an assault 5512 | -6/Waste | Spotted C-40 Crusher 5516 | -6/Waste | Spotted C-40 Crusher 5521 | -6/Waste | Spotted C-40 Crusher 5528 | -6/Waste | Spotted C-40 Crusher 5532 | -6/Waste | Spotted C-40 Crusher 5535 | -6/Waste | Allies destroyed C-40 Crusher 5535 | -6/Waste | Allies destroyed C-40 Crusher 5550 | -6/Waste | Allies destroyed C-40 Crusher 5554 | -6/Waste | Destroyed C-40 Crusher 5557 | -6/Waste | Allies destroyed C-40 Crusher 5567 | -6/Waste | Destroyed C-40 Crusher 5574 | -6/Waste | Discovered new exit (range 18) 5728 | -6/Waste | Build established: Scavenger-Scout 5893 | -6/Waste | Tech Extrapolator generated special schematic: Deep Structural Scanner 7125 | -6/Waste | Identified exit to Factory 7126 | -6/Waste | Entered Factory 7460 | -6/Factory | Build established: Hacker-Scout 7462 | -6/Factory | Discovered new exit (range 5) 7463 | -6/Factory | Identified exit to Factory 7516 | -6/Factory | Identified exit to Lower Caves 7555 | -6/Factory | Discovered exit to Factory (range 14) 7668 | -6/Factory | Discovered exit to Factory (range 17) 7713 | -6/Factory | Reached level 17 7870 | -6/Factory | Build established: Wizard-Scout 7921 | -6/Factory | Reached level 18 7969 | -6/Factory | Tech Extrapolator generated special schematic: Energy Deflector 8032 | -6/Factory | Cargo convoy interrupted 8089 | -6/Factory | Destroyed 10 combat bots 8204 | -6/Factory | Fabricated Hyp. Gauss Cannon (x2) 8231 | -6/Factory | Tech Extrapolator generated special schematic: Machine Rigger 8319 | -6/Factory | Build established: Hacker-Scout 8363 | -6/Factory | Found Prototype Processor 8363 | -6/Factory | Identified Exp. Targeting Computer 8498 | -6/Factory | Reached level 19 8520 | -6/Factory | Destroyed 7 combat bots 8740 | -6/Factory | Fabricated Cesium-ion Thruster? 8787 | -6/Factory | Destroyed 8 combat bots 8834 | -6/Factory | Fabricated Deep Structural Scanner (x1) 8876 | -6/Factory | First assault squad dispatched 8936 | -6/Factory | Build established: Hacker-Sprinter 8975 | -6/Factory | Spotted B-75 Beast 8978 | -6/Factory | Destroyed B-75 Beast 9137 | -6/Factory | Fabricated Cld. Cesium-ion Thruster (x1) 9222 | -6/Factory | Reached level 20 9231 | -6/Factory | Fabricated Cld. Cesium-ion Thruster? 9254 | -6/Factory | Destroyed 9 combat bots 9255 | -6/Factory | Upgraded with Utility slot (x1) 9270 | -6/Factory | Tech Extrapolator generated special schematic: Mak. Core Shielding 9395 | -6/Factory | High security lockdown imminent 9475 | -6/Factory | High security lockdown engaged 9562 | -6/Factory | Build established: Hacker-Scout 9715 | -6/Factory | Destroyed 15 combat bots 9809 | -6/Factory | Destroyed 8 combat bots 9831 | -6/Factory | Reached level 21 10034 | -6/Factory | Destroyed 13 combat bots 10231 | -6/Factory | Destroyed 7 combat bots 10235 | -6/Factory | Sterilization system engaged 10235 | -6/Factory | Non-combat units ordered to evacuate 10291 | -6/Factory | Reached level 22 10335 | -6/Factory | Combat units ordered to evacuate 10372 | -6/Factory | Destroyed 57 combat bots 10535 | -6/Factory | Ambient heat levels rising (+10) 10567 | -6/Factory | Entered Lower Caves 10604 | -6/Lower Caves | Spotted B-75 Beast 10607 | -6/Lower Caves | Destroyed B-75 Beast 10662 | -6/Lower Caves | Discovered new exit (range 10) 10665 | -6/Lower Caves | Identified exit to Lower Caves 10678 | -6/Lower Caves | Attracted the attention of an 0b10 checkpoint 10721 | -6/Lower Caves | Learned Factory interactive machine intel 10722 | -6/Lower Caves | Destroyed 7 combat bots 10795 | -6/Lower Caves | Entered another Lower Caves area 10797 | -6/Lower Caves | Learned Factory stockpile data 10801 | -6/Lower Caves | Discovered exit to Factory (range 19) 10833 | -6/Lower Caves | Learned Factory trap positions 10859 | -6/Lower Caves | Build established: Hacker-Sprinter 10886 | -6/Lower Caves | Discovered new exit (range 17) 10890 | -6/Lower Caves | Identified exit to Data Miner 10919 | -6/Lower Caves | Encountered a Warlord checkpoint 10992 | -6/Lower Caves | Spotted B-75 Beast 11008 | -6/Lower Caves | Destroyed B-75 Beast 11068 | -6/Lower Caves | Entered Data Miner 11068 | -6/Data Miner | Discovered new exit (range 6) 11072 | -6/Data Miner | Met Data Miner 11081 | -6/Data Miner | Learned location of Section 7 (-3) 11081 | -6/Data Miner | Acquired the access code to Warlord's prototype stash 11086 | -6/Data Miner | Received God Mode back door access code from Data Miner 11094 | -6/Data Miner | Data Conduit disabled 11128 | -6/Data Miner | Found Prototype Device 11128 | -6/Data Miner | Identified Exp. Thermal Shield 11135 | -6/Data Miner | Identified exit to Proximity Caves 11136 | -6/Data Miner | Entered Proximity Caves 11138 | -5/Proximity Caves | Spotter reported a threat 11174 | -5/Proximity Caves | Reached level 23 11186 | -5/Proximity Caves | Attracted the attention of an 0b10 checkpoint 11190 | -5/Proximity Caves | Learned Factory stockpile data 11209 | -5/Proximity Caves | Destroyed 12 combat bots 11233 | -5/Proximity Caves | Discovered exit to Factory (range 16) 11245 | -5/Proximity Caves | Destroyed 8 combat bots 11322 | -5/Proximity Caves | Spotted B-75 Beast 11324 | -5/Proximity Caves | Destroyed B-75 Beast 11355 | -5/Proximity Caves | Entered Factory 11356 | -5/Factory | Loaded intel: 97 trap records 11358 | -5/Factory | Loaded intel: 56 interactive machine locations 11492 | -5/Factory | Identified exit to Upper Caves 11492 | -5/Factory | Identified exit to Extension 11577 | -5/Factory | Unchained authorized (CL-0N3) 11581 | -5/Factory | Destroyed 10 combat bots 11645 | -5/Factory | Build established: Hacker-Scout 11645 | -5/Factory | Reached level 24 11655 | -5/Factory | First assault squad dispatched 11667 | -5/Factory | Destroyed 10 combat bots 11726 | -5/Factory | O-24 Administrator reconstituted as X-87 Electro 11727 | -5/Factory | X-87 Electro reconstituted as CL-0N3 11792 | -5/Factory | Destroyed 15 combat bots 11798 | -5/Factory | Discovered new exit (range 21) 11799 | -5/Factory | Spotted B-75 Beast 11805 | -5/Factory | Destroyed B-75 Beast 11829 | -5/Factory | Identified exit to Factory 11848 | -5/Factory | Discovered exit to Factory (range 18) 11995 | -5/Factory | High security lockdown imminent 11997 | -5/Factory | U-05 Engineer reconstituted as Hotshot 11997 | -5/Factory | Spotted Hotshot 12001 | -5/Factory | Destroyed Hotshot 12001 | -5/Factory | Hotshot reconstituted as CL-0N3 12075 | -5/Factory | High security lockdown engaged 12147 | -5/Factory | Reached level 25 12157 | -5/Factory | Destroyed 14 combat bots 12160 | -5/Factory | Discovered exit to Factory (range 17) 12206 | -5/Factory | Entered Extension 12206 | -5/Extension | Upgraded with Utility slot (x1) 12222 | -5/Extension | Rescued a captive Derelict 12223 | -5/Extension | Rescued a captive Derelict 12257 | -5/Extension | Rescued a captive Derelict 12261 | -5/Extension | Rescued a captive Derelict 12263 | -5/Extension | Rescued a captive Derelict 12265 | -5/Extension | Rescued a captive Derelict 12299 | -5/Extension | Rescued a captive Derelict 12300 | -5/Extension | Rescued A7 12310 | -5/Extension | Murdered A7 12311 | -5/Extension | Extracted ID and sensor layout for unrecognized location from A7's data core 12322 | -5/Extension | Spotted B-75 Beast 12327 | -5/Extension | Destroyed B-75 Beast 12337 | -5/Extension | Discovered exit to Factory (range 19) 12338 | -5/Extension | Spotted B-75 Beast 12339 | -5/Extension | Destroyed B-75 Beast 12361 | -5/Extension | Unchained authorized (CL-0N3) 12364 | -5/Extension | Destroyed 7 combat bots 12390 | -5/Extension | High security lockdown imminent 12414 | -5/Extension | Discovered exit to Factory (range 11) 12414 | -5/Extension | Discovered new exit (range 6) 12416 | -5/Extension | Identified exit to Cetus 12418 | -5/Extension | Entered Cetus 12422 | -5/Cetus | Spotted Cetus Guard 12422 | -5/Cetus | Spotted Cetus Guard 12422 | -5/Cetus | Spotted Cetus Guard 12422 | -5/Cetus | Spotted Cetus Guard 12431 | -5/Cetus | Destroyed Cetus Guard 12434 | -5/Cetus | Destroyed Cetus Guard 12434 | -5/Cetus | Destroyed Cetus Guard 12439 | -5/Cetus | Destroyed Cetus Guard 12455 | -5/Cetus | Discovered exit to Factory (range 20) 12478 | -5/Cetus | Discovered new exit (range 21) 12483 | -5/Cetus | Identified exit to Archives 12491 | -5/Cetus | Spotted Cetus Guard 12491 | -5/Cetus | Spotted Cetus Guard 12493 | -5/Cetus | Destroyed Cetus Guard 12495 | -5/Cetus | Destroyed Cetus Guard 12496 | -5/Cetus | Spotted Cetus Guard 12496 | -5/Cetus | Spotted Cetus Guard 12498 | -5/Cetus | Destroyed Cetus Guard 12501 | -5/Cetus | Destroyed Cetus Guard 12504 | -5/Cetus | Discovered exit to Factory (range 23) 12535 | -5/Cetus | Found a strange terminal 12643 | -5/Cetus | Entered Archives 12650 | -5/Archives | Discovered new exit (range 23) 12662 | -5/Archives | Discovered new exit (range 22) 12663 | -5/Archives | Discovered exit to Factory (range 19) 12676 | -5/Archives | Identified exit to Hub_04(d) 12687 | -5/Archives | Entered Hub_04(d) 12713 | -5/Hub_04(d) | Discovered exit to Factory (range 6) 12714 | -5/Hub_04(d) | Spotted B-75 Beast 12721 | -5/Hub_04(d) | Destroyed B-75 Beast 12733 | -5/Hub_04(d) | Discovered exit to Factory (range 15) 12749 | -5/Hub_04(d) | Discovered exit to Factory (range 22) 12763 | -5/Hub_04(d) | Discovered exit to Factory (range 20) 12811 | -5/Hub_04(d) | Destroyed 13 combat bots 12869 | -5/Hub_04(d) | Unchained authorized (CL-0N3) 12937 | -5/Hub_04(d) | Network Hub disabled 12937 | -5/Hub_04(d) | Network Hub disabled 12969 | -5/Hub_04(d) | Spotted Lightning 12971 | -5/Hub_04(d) | Spotted Lightning 12972 | -5/Hub_04(d) | K-01 Serf reconstituted as Immortal 12972 | -5/Hub_04(d) | Spotted Immortal 12975 | -5/Hub_04(d) | Disrupted transfer network 12998 | -5/Hub_04(d) | Destroyed Immortal 12998 | -5/Hub_04(d) | Immortal reconstituted as CL-0N3 13004 | -5/Hub_04(d) | Spotted Lightning 13007 | -5/Hub_04(d) | Spotted Lightning 13018 | -5/Hub_04(d) | Spotted Lightning 13020 | -5/Hub_04(d) | Spotted Lightning 13027 | -5/Hub_04(d) | Reached level 26 13027 | -5/Hub_04(d) | Destroyed Lightning 13028 | -5/Hub_04(d) | Found Prototype Device 13028 | -5/Hub_04(d) | Identified Exp. EM Shield 13061 | -5/Hub_04(d) | Destroyed Lightning 13094 | -5/Hub_04(d) | Destroyed Lightning 13127 | -5/Hub_04(d) | Destroyed Lightning 13133 | -5/Hub_04(d) | Found Prototype Device 13133 | -5/Hub_04(d) | Identified Exp. Phase Shifter 13157 | -5/Hub_04(d) | Destroyed Lightning 13184 | -5/Hub_04(d) | Destroyed Lightning 13195 | -5/Hub_04(d) | Network Hub disabled 13207 | -5/Hub_04(d) | Network Hub disabled 13265 | -5/Hub_04(d) | Entered Factory 13336 | -4/Factory | Tech Extrapolator generated special schematic: Wartreads 13396 | -4/Factory | Discovered new exit (range 12) 13457 | -4/Factory | Identified exit to Research 13515 | -4/Factory | First assault squad dispatched 13672 | -4/Factory | Manually triggered Chute Trap 13672 | -4/Factory | Sucked down chute 13672 | -4/Factory | Entered Waste 13675 | -4/Waste | Spotted C-40 Crusher 13678 | -4/Waste | Spotted C-40 Crusher 13680 | -4/Waste | Spotted C-40 Crusher 13681 | -4/Waste | Spotted C-40 Crusher 13683 | -4/Waste | Discovered new exit (range 21) 13685 | -4/Waste | Destroyed C-40 Crusher 13697 | -4/Waste | Spotted C-40 Crusher 13700 | -4/Waste | Identified exit to Factory 13700 | -4/Waste | Entered Factory 13724 | -4/Factory | Discovered new exit (range 14) 13727 | -4/Factory | Identified exit to Upper Caves 13887 | -4/Factory | Crushed by falling debris 13910 | -4/Factory | Unchained authorized (QV-33N) 13917 | -4/Factory | Spotted B-86 Titan 13950 | -4/Factory | First assault squad dispatched 13961 | -4/Factory | Destroyed B-86 Titan 13991 | -4/Factory | Reached level 27 14061 | -4/Factory | Found Prototype Hackware 14061 | -4/Factory | Identified Exp. System Shield 14136 | -4/Factory | Destroyed 10 combat bots 14171 | -4/Factory | Spotted B-86 Titan 14176 | -4/Factory | Destroyed B-86 Titan 14305 | -4/Factory | Destroyed 16 combat bots 14403 | -4/Factory | Garrison activated, responded to threat 14442 | -4/Factory | High security lockdown imminent 14465 | -4/Factory | Destroyed 21 combat bots 14495 | -4/Factory | Fabricated Adv. Corruption Screen (x2) 14522 | -4/Factory | High security lockdown engaged 14544 | -4/Factory | Reached level 28 14578 | -4/Factory | Destroyed 13 combat bots 14619 | -4/Factory | Upgraded with Power slot (x1) 14656 | -4/Factory | Core integrity fell below 50% 14685 | -4/Factory | Destroyed 14 combat bots 14734 | -4/Factory | Destroyed QV-33N 14754 | -4/Factory | Found Prototype Device 14754 | -4/Factory | Identified Zeronet Interface 14756 | -4/Factory | Found Prototype Device 14756 | -4/Factory | Identified QV-33N's Drone Shield 14765 | -4/Factory | Found Prototype Protection 14765 | -4/Factory | Identified Centrium Heavy Armor Plating 14771 | -4/Factory | Destroyed 9 combat bots 14827 | -4/Factory | Entered Upper Caves 14827 | -4/Upper Caves | Spotted B-86 Titan 14832 | -4/Upper Caves | Destroyed B-86 Titan 14856 | -4/Upper Caves | Learned Research security intel 14939 | -4/Upper Caves | Attracted the attention of an 0b10 checkpoint 14949 | -4/Upper Caves | Discovered new exit (range 24) 14958 | -4/Upper Caves | Identified exit to Upper Caves 15016 | -4/Upper Caves | Attracted the attention of an 0b10 base 15026 | -4/Upper Caves | Learned 4 Research zone layouts 15044 | -4/Upper Caves | Destroyed 7 combat bots 15119 | -4/Upper Caves | Build established: Hacker-Gunner 15167 | -4/Upper Caves | Entered another Upper Caves area 15189 | -4/Upper Caves | Discovered exit to Research (range 16) 15268 | -4/Upper Caves | Spotted B-86 Titan 15272 | -4/Upper Caves | Destroyed B-86 Titan 15302 | -4/Upper Caves | Discovered new exit (range 21) 15322 | -4/Upper Caves | Identified exit to Zhirov 15362 | -4/Upper Caves | Learned 4 Research zone layouts 15461 | -4/Upper Caves | Entered Zhirov 15461 | -4/Zhirov | Discovered new exit (range 3) 15463 | -4/Zhirov | Identified exit to Proximity Caves 15469 | -4/Zhirov | Met Zhirov 15477 | -4/Zhirov | Learned location of Quarantine (-3) 15477 | -4/Zhirov | Learned location of Command (-1) 15483 | -4/Zhirov | Zhirov requested help retrieving the SGEMP Prototype 15493 | -4/Zhirov | Found Alien Artifact 15493 | -4/Zhirov | Identified Integrated Dissipator 15493 | -4/Zhirov | Installed Integrated Dissipator, increased core heat dissipation (+20) 15512 | -4/Zhirov | Found Alien Artifact 15528 | -4/Zhirov | Entered Proximity Caves 15583 | -3/Proximity Caves | Spotted B-86 Titan 15593 | -3/Proximity Caves | Destroyed B-86 Titan 15619 | -3/Proximity Caves | Reached level 29 15671 | -3/Proximity Caves | Destroyed 14 combat bots 15678 | -3/Proximity Caves | Discovered exit to Research (range 21) 15730 | -3/Proximity Caves | Upgraded with Propulsion slot (x1) 15852 | -3/Proximity Caves | Attracted the attention of an 0b10 checkpoint 15909 | -3/Proximity Caves | Entered Research 15998 | -3/Research | Spotted B-86 Titan 16109 | -3/Research | Revision forces began assault on 0b10 16127 | -3/Research | Met up with Revision 17++ 16157 | -3/Research | Identified Transdimensional Reconstructor 16160 | -3/Research | Tech Extrapolator generated special schematic: Telecube 16230 | -3/Research | Build established: Hacker-Scout 16414 | -3/Research | Reached level 30 16435 | -3/Research | Destroyed 11 combat bots 16438 | -3/Research | Discovered new exit (range 16) 16440 | -3/Research | Identified exit to Research 16462 | -3/Research | Discovered new exit (range 9) 16464 | -3/Research | Identified exit to Quarantine 16534 | -3/Research | Identified exit to Armory 16609 | -3/Research | Research terminal network offline 16667 | -3/Research | Entered Armory 16667 | -3/Armory | Accompanied by 1 ally 16800 | -3/Armory | Destroyed 10 combat bots 16809 | -3/Armory | Found Prototype Processor 16809 | -3/Armory | Identified Exp. Signal Interpreter 16864 | -3/Armory | Spotted B-86 Titan 16867 | -3/Armory | Unchained authorized (6S-H0T) 16867 | -3/Armory | Destroyed B-86 Titan 16917 | -3/Armory | First assault squad dispatched 16939 | -3/Armory | Found Prototype Processor 16939 | -3/Armory | Identified Exp. Terrain Scan Processor 16941 | -3/Armory | Found Prototype Device 16941 | -3/Armory | Identified Exp. ECM Suite 16946 | -3/Armory | Destroyed 30 combat bots 17017 | -3/Armory | Core integrity fell below 50% 17022 | -3/Armory | Destroyed 8 combat bots 17033 | -3/Armory | Core integrity fell below 20% 17034 | -3/Armory | Reached level 31 17069 | -3/Armory | Destroyed 7 combat bots 17140 | -3/Armory | Destroyed 6S-H0T 17144 | -3/Armory | Found Exp. Targeting Computer 17210 | -3/Armory | High security lockdown imminent 17234 | -3/Armory | Destroyed 21 combat bots 17250 | -3/Armory | Discovered new exit (range 7) 17290 | -3/Armory | High security lockdown engaged 17342 | -3/Armory | Warped through subspace to slip node 17352 | -3/Armory | Destroyed 14 combat bots 17353 | -3/Armory | Entered Lab 17353 | -3/Lab | Discovered exit to Research (range 9) 17355 | -3/Lab | Hidden lab's door opened automatically 17355 | -3/Lab | Sensor layout match revealed 17356 | -3/Lab | Gained access to the hidden lab's interior 17413 | -3/Lab | Found Alien Artifact 17413 | -3/Lab | Identified Core Regenerator 17413 | -3/Lab | Used Core Regenerator, restored core integrity (+0) 17416 | -3/Lab | Found Alien Artifact 17416 | -3/Lab | Identified Integrated Reactor 17416 | -3/Lab | Installed Integrated Reactor, increased core energy generation (+10) 17419 | -3/Lab | Found Transdimensional Reconstructor 17424 | -3/Lab | Unable to decrypt terminal 17429 | -3/Lab | Found Prototype Hackware 17429 | -3/Lab | Identified Quantum Router 17431 | -3/Lab | Found Prototype Protection 17431 | -3/Lab | Identified Med. Regenerative Plating 17450 | -3/Lab | Entered Research 17452 | -2/Research | Reached level 32 17587 | -2/Research | Identified exit to Testing 17645 | -2/Research | Destroyed 10 combat bots 17653 | -2/Research | Unchained authorized (DW-4LL) 17693 | -2/Research | Exiles provided nearest exit location to -1/Access 17794 | -2/Research | Garrison activated, responded to threat 17835 | -2/Research | Fabricated Zero-point Reactor (x1) 17839 | -2/Research | P-80 Master assimilated allied Administrator 9a 17845 | -2/Research | Reached level 33 17859 | -2/Research | Destroyed DW-4LL 17875 | -2/Research | Found Prototype Processor 17875 | -2/Research | Identified Exp. Armor Integrity Analyzer 17887 | -2/Research | Destroyed 10 combat bots 17976 | -2/Research | Destroyed 7 combat bots 18018 | -2/Research | Unchained authorized (GL-D0S) 18110 | -2/Research | Found Prototype Processor 18110 | -2/Research | Identified Exp. Melee Analysis Suite 18125 | -2/Research | Spotted B-90 Cyclops 18173 | -2/Research | Spotted B-90 Cyclops 18175 | -2/Research | Destroyed B-90 Cyclops 18200 | -2/Research | First assault squad dispatched 18570 | -2/Research | Destroyed 11 combat bots 18573 | -2/Research | Spotted B-90 Cyclops 18584 | -2/Research | Destroyed B-90 Cyclops 18638 | -2/Research | Garrison activated, responded to threat 18669 | -2/Research | Discovered exit to Access (range 11) 18765 | -2/Research | Reached level 34 18815 | -2/Research | Garrison activated, responded to threat 18846 | -2/Research | Destroyed 7 combat bots 18872 | -2/Research | Spotted B-90 Cyclops 18875 | -2/Research | Destroyed B-90 Cyclops 18887 | -2/Research | Entered Testing 18888 | -2/Testing | Maximum security lockdown engaged 18911 | -2/Testing | Found Prototype Device 18911 | -2/Testing | Identified AEGIS Remote Shield 18925 | -2/Testing | Spotted PD-8QIUYG1F2X 18938 | -2/Testing | Destroyed PD-8QIUYG1F2X 18963 | -2/Testing | Found Prototype Device 18963 | -2/Testing | Identified 2N-1CE's Frost Array 18972 | -2/Testing | Destroyed PG-HMV9F1RSDH 18981 | -2/Testing | Spotted Striker 18981 | -2/Testing | Spotted Striker 18984 | -2/Testing | Found Prototype Device 18984 | -2/Testing | Identified Imp. Particle Accelerator 18988 | -2/Testing | Found Prototype Device 18988 | -2/Testing | Identified Thermal Barrier 18995 | -2/Testing | Destroyed Striker 18997 | -2/Testing | Spotted Alpha 7 18997 | -2/Testing | Destroyed Striker 19002 | -2/Testing | Destroyed Alpha 7 19008 | -2/Testing | Found Prototype Processor 19008 | -2/Testing | Identified Exp. Target Analyzer 19012 | -2/Testing | Stole the SGEMP Prototype 19024 | -2/Testing | Found Prototype Launcher 19024 | -2/Testing | Identified Z-bomb Delivery System 19031 | -2/Testing | Found Prototype Launcher 19031 | -2/Testing | Identified Point Singularity Launcher 19071 | -2/Testing | Found Prototype Device 19071 | -2/Testing | Identified Exp. Hardlight Generator 19078 | -2/Testing | Found Prototype Energy Gun 19078 | -2/Testing | Identified Warp Gun 19105 | -2/Testing | Build established: Scavenger-Scout 19122 | -2/Testing | Spotted Investigator 19125 | -2/Testing | Garrison activated, responded to threat 19134 | -2/Testing | Destroyed Investigator 19193 | -2/Testing | Discovered exit to Access (range 18) 19215 | -2/Testing | Spotted Alpha 7 19220 | -2/Testing | Destroyed Alpha 7 19248 | -2/Testing | Spotted Investigator 19249 | -2/Testing | Destroyed Investigator 19262 | -2/Testing | Spotted Executioner 19271 | -2/Testing | Destroyed Executioner 19325 | -2/Testing | Reached level 35 19333 | -2/Testing | Found Prototype Processor 19333 | -2/Testing | Identified Exp. Core Analyzer 19340 | -2/Testing | Core integrity fell below 50% 19365 | -2/Testing | Destroyed 62 combat bots 19376 | -2/Testing | Entered Access 19377 | -1/Access | Delivered the SGEMP Prototype to Zhirov 19377 | -1/Access | Zhirov transferred Access data 19378 | -1/Access | Loaded intel: 127 machine locations 19378 | -1/Access | Loaded intel: 63 trap records 19378 | -1/Access | Identified exit to Surface 19378 | -1/Access | Discovered exit to Surface (range 174) 19378 | -1/Access | Identified exit to Command 19378 | -1/Access | Discovered exit to Command (range 96) 19390 | -1/Access | Found Prototype Device 19516 | -1/Access | Spotted B-99 Colossus 19522 | -1/Access | Destroyed B-99 Colossus 19536 | -1/Access | High security lockdown imminent 19547 | -1/Access | Identified Exp. Thermal Defense Suite 19616 | -1/Access | High security lockdown engaged 19639 | -1/Access | Spotted B-99 Colossus 19651 | -1/Access | Garrison activated, responded to threat 19651 | -1/Access | Reached level 36 19716 | -1/Access | Spotted B-99 Colossus 19722 | -1/Access | Destroyed 27 combat bots 19754 | -1/Access | Garrison activated, responded to threat 19856 | -1/Access | Destroyed 32 combat bots 19856 | -1/Access | Spotted B-99 Colossus 19863 | -1/Access | Destroyed B-99 Colossus 19929 | -1/Access | Energy Cycler disabled 19948 | -1/Access | Destroyed 13 combat bots 20230 | -1/Access | Spotted Investigator 20258 | -1/Access | Scanned by Researcher 20259 | -1/Access | Destroyed Investigator 20262 | -1/Access | Reached level 37 20262 | -1/Access | Upgraded with Utility slot (x1) 20266 | -1/Access | Entered Command 20276 | -1/Command | Disengaged cave seal 20308 | -1/Command | Phase Generator disabled 20413 | -1/Command | High security lockdown imminent 20415 | -1/Command | Spotted B-99 Colossus 20424 | -1/Command | Destroyed B-99 Colossus 20493 | -1/Command | High security lockdown engaged 20506 | -1/Command | Found Prototype Device 20506 | -1/Command | Identified Exp. Actuator Array 20522 | -1/Command | Found Prototype Processor 20522 | -1/Command | Identified Spectral Analyzer 20593 | -1/Command | Destroyed Striker 20616 | -1/Command | Destroyed 23 combat bots 20639 | -1/Command | Spotted B-99 Colossus 20644 | -1/Command | Destroyed B-99 Colossus 20658 | -1/Command | Spotted Striker 20658 | -1/Command | Spotted Striker 20665 | -1/Command | Destroyed Striker 20667 | -1/Command | Destroyed Striker 20671 | -1/Command | Spotted Investigator 20673 | -1/Command | Destroyed Investigator 20693 | -1/Command | Spotted Striker 20694 | -1/Command | Spotted Alpha 7 20697 | -1/Command | Destroyed Alpha 7 20699 | -1/Command | Spotted Executioner 20701 | -1/Command | Destroyed Striker 20704 | -1/Command | Destroyed Executioner 20708 | -1/Command | Spotted Striker 20709 | -1/Command | Spotted Alpha 7 20723 | -1/Command | Reached level 38 20723 | -1/Command | Destroyed Striker 20726 | -1/Command | Spotted Executioner 20729 | -1/Command | Destroyed Alpha 7 20730 | -1/Command | Spotted Executioner 20732 | -1/Command | Destroyed Executioner 20733 | -1/Command | Destroyed Executioner 20734 | -1/Command | Spotted Executioner 20743 | -1/Command | Spotted B-99 Colossus 20744 | -1/Command | Found Exp. Core Analyzer 20746 | -1/Command | Destroyed Executioner 20750 | -1/Command | Destroyed B-99 Colossus 20751 | -1/Command | Spotted B-99 Colossus 20758 | -1/Command | Destroyed B-99 Colossus 20763 | -1/Command | Found Prototype Device 20763 | -1/Command | Identified Adv. Kinecellerator 20779 | -1/Command | Destroyed 36 combat bots 20795 | -1/Command | Spotted Striker 20803 | -1/Command | Spotted Executioner 20803 | -1/Command | Destroyed Striker 20803 | -1/Command | Spotted Striker 20806 | -1/Command | Destroyed Striker 20811 | -1/Command | Spotted Executioner 20815 | -1/Command | Destroyed Executioner 20817 | -1/Command | Destroyed Executioner 20865 | -1/Command | Destroyed Investigator 20888 | -1/Command | Spotted M Guard 20888 | -1/Command | Spotted M Guard 20888 | -1/Command | Spotted Combat Programmer 20891 | -1/Command | Spotted Combat Programmer 20901 | -1/Command | Destroyed Combat Programmer 20903 | -1/Command | Destroyed Combat Programmer 20920 | -1/Command | Destroyed M Guard 20926 | -1/Command | Destroyed M Guard 20926 | -1/Command | All MAIN.C guards destroyed 20942 | -1/Command | Found Thermal Barrier 20947 | -1/Command | Destroyed 30 combat bots 21034 | -1/Command | Spotted Investigator 21040 | -1/Command | Spotted Executioner 21042 | -1/Command | Destroyed Investigator 21046 | -1/Command | Destroyed Executioner 21053 | -1/Command | Spotted Executioner 21057 | -1/Command | Spotted Striker 21057 | -1/Command | Spotted Striker 21061 | -1/Command | Destroyed Striker 21068 | -1/Command | Destroyed Striker 21071 | -1/Command | Destroyed Executioner 21080 | -1/Command | Core integrity fell below 50% 21080 | -1/Command | Spotted Executioner 21086 | -1/Command | Destroyed Executioner 21109 | -1/Command | Destroyed 35 combat bots 21122 | -1/Command | Found Thermal Barrier 21132 | -1/Command | Met MAIN.C 21213 | -1/Command | Destroyed MAIN.C Shell 21214 | -1/Command | MAIN.C activated Command garrisons 21220 | -1/Command | Zhirov arrived to use SGEMP to disable MAIN.C 21227 | -1/Command | Discovered exit to Surface (range 58) 21227 | -1/Command | Discovered exit to Surface (range 88) 21227 | -1/Command | Extracted map data and part IDs from MAIN.C's data core 21275 | -1/Command | Failed to warp due to unstable space 21519 | -1/Command | Crushed by falling debris 21523 | -1/Command | Crushed by falling debris 21525 | -1/Command | Crushed by falling debris 21526 | -1/Command | Core integrity fell below 20% 21694 | -1/Command | Crushed by falling debris 21704 | -1/Command | Crushed by falling debris 21712 | -1/Command | Crushed by falling debris 21717 | -1/Command | Crushed by falling debris 21730 | -1/Command | Crushed by falling debris 21738 | -1/Command | Crushed by falling debris 21738 | -1/Command | Smashed by cave-in Last Messages --------------- 21643_ Acquired 15 matter. 21694_ The unstable cave ceiling collapses. 21694_ Crushed by falling debris. 21704_ The unstable cave ceiling collapses. 21704_ Crushed by falling debris. 21704_ Dropped Protomatter-66. 21712_ The unstable cave ceiling collapses. 21712_ Crushed by falling debris. 21712_ Protomatter-10 crushed. 21712_ Dropped Protomatter-79. 21717_ The unstable cave ceiling collapses. 21717_ Crushed by falling debris. 21717_ Protomatter-39 crushed. 21718_ Dropped Protomatter-79. 21728_ Used Protomatter to restore core integrity (+237, depleted) 21730_ The unstable cave ceiling collapses. 21730_ Crushed by falling debris. 21731_ The unstable cave ceiling collapses. 21738_ Crushed by falling debris. Map ----- +----------------------------------------------------+ | | | | | | | ?????????????????????????????????????????????????? | | ????########?????????????????????????????????????? | | ????#########????????????????????????????????????? | | ????##########???????????????????????????????????? | | ????###########??????????????????????????????????? | | ????#### #######?????????????????????????????????? | | ????##### ########???????????????????????????????? | | ????###### ########??????????????????????????????? | | ########### ########?????????????????????????????? | | ############ ##########??????????????????????????? | | ############# ##########?????????????????????????? | | ############# #########?????????????????????????? | | # # ##########????????????????????????? | | ##### ## # # ######????????????????????????? | | ################## ######???????????????????????? | | ################## #######??????????????????????? | | #################### #######?????????????????????? | | ?################### ########????????????????????? | | ?????????????######## ########???????????????????? | | ??????????????######## ########??????????????????? | | ???????????????######## ########?????????????????? | | ????????????????######## ########????????????????? | | ?????????????????########@########????????????#### | | ??????????????????######## ########???????????# | | ???????????????????######## ########??????????# | | ????????????????????######## ########?????????# | | ?????????????????????######## ########????????# | | ??????????????????????######## ################### | | ???????????????????????######## ################## | | ????????????????????????######## ################# | | ?????????????????????????########;################ | | ??????????????????????????######## | | ???????????????????????????####### | | ?????????????????################# #;### | | ????????########################## ## ## | | ????????########################## ### # | | ????????##########################+###"; ! | | ????????### " # | | ????????######################" # | | ????????####################### # "" | | ????????####################### # """" | | ?????????????????############## # """" | | ??????????????????????????##### !=] # "" | | ???????????????????????????#### !=] # | | ???????????????????????????#### ==] + | | ???????????????????????????#### # | | ???????????????????????????###########"# ### | +----------------------------------------------------+ Best States ------------- Heat Dissipation 117 Energy Generation 69 Energy Capacity 355 Matter Stores 800 Matter Capacity 800 Sight Range 21 Terrain Scan Density 1010 Additional Mass Support 12 Corruption Block 20 Resistance: KI 10 Resistance: TH 50 Resistance: EM 75 Power Shielding 90 Weapon Cycling 25 Phase Shifting 20 Evasion (%) 98 Targeting Accuracy 24 Core Analysis 12 Armor Integrity Analysis 50 Particle Charging 40 Kinecelleration 50 Offensive Hacking 42 Defensive Hacking 35 Item Schematics ----------------- Spk. Treads | -8/Scraptown | Extrapolated Mak. Leg | -6/Factory | Extrapolated Mak. Power Source | -6/Waste | Extrapolated Spk. Heavy Treads | -6/Waste | Extrapolated Mak. Flight Unit | -6/Waste | Extrapolated Mak. Coolant Network | -6/Waste | Extrapolated Deep Structural Scanner | -6/Waste | Extrapolated 0b10 Decoder Chip [Scout] | -6/Waste | Extrapolated Mak. Targeting Computer | -6/Waste | Extrapolated Mak. Light Armor Plating | -6/Waste | Extrapolated Mak. Medium Armor Plating | -6/Waste | Extrapolated Mak. Ablative Armor | -6/Waste | Extrapolated Beamcaster | -6/Waste | Extrapolated Hvy. Battle Rifle | -6/Waste | Extrapolated Mak. Shrapnel Gun | -6/Waste | Extrapolated Spk. Medium Treads | -6/Factory | Extrapolated Hyp. Gauss Rifle | -6/Factory | Hacked Mak. Terrain Scanner | -6/Factory | Extrapolated 0b10 Decoder Chip [Generic] | -6/Factory | Extrapolated 0b10 Decoder Chip [Skirmisher] | -6/Factory | Extrapolated Mak. ECM Suite | -6/Factory | Extrapolated Mak. Heavy Armor Plating | -6/Factory | Extrapolated Mak. Trap Scanner | -6/Factory | Extrapolated Mak. Salvage Targeting Computer | -6/Factory | Extrapolated Hyp. Gauss Cannon | -6/Factory | Hacked Mak. Thermal Plating | -6/Factory | Extrapolated Energy Deflector | -6/Factory | Extrapolated Mak. Hacking Suite | -6/Factory | Extrapolated Mak. System Shield | -6/Factory | Extrapolated Machine Rigger | -6/Factory | Extrapolated Multitool | -6/Factory | Extrapolated Bore Cannon | -6/Factory | Extrapolated Mak. Hammer | -6/Factory | Extrapolated Mak. Axe | -6/Factory | Extrapolated Cesium-ion Thruster | -6/Factory | Hacked Slug Cannon | -6/Factory | Extrapolated Cld. Cesium-ion Thruster | -6/Factory | Scanalyzed Mak. Core Shielding | -6/Factory | Extrapolated Mak. Propulsion Shielding | -6/Factory | Extrapolated Mak. Laser | -6/Factory | Extrapolated Hvy. Beamcaster | -6/Factory | Extrapolated Combat Drone Bay | -6/Data Miner | Free Lgt. Regenerative Plating | -6/Data Miner | Free Cld. Gravmag System | -6/Data Miner | Free Exp. Heat Sink | -6/Data Miner | Free Hvy. Proton Missile Launcher | -6/Data Miner | Free Imp. Gyrokinetic Inverter | -6/Data Miner | Free Imp. Phase Shifter | -6/Data Miner | Free Matter Neutralizer | -6/Data Miner | Free Imp. Shock Absorption System | -6/Data Miner | Free Imp. Armor Integrity Analyzer | -6/Data Miner | Free Gamma Bomb Array | -6/Data Miner | Free Mak. Transmission Jammer | -5/Factory | Extrapolated Mak. Utility Shielding | -5/Factory | Extrapolated Mak. System Restoration Module | -5/Factory | Extrapolated Mak. Kinetic Plating | -5/Factory | Extrapolated Imp. Kinecellerator | -5/Factory | Hacked Mapping Drone Bay | -5/Factory | Extrapolated Tactical Coordination Suite | -5/Hub_04(d) | Extrapolated Mak. Hover Unit | -5/Hub_04(d) | Extrapolated Wartreads | -4/Factory | Extrapolated Graphene Brace | -4/Factory | Hacked Adv. Corruption Screen | -4/Factory | Hacked Mak. Terrain Scan Processor | -4/Factory | Extrapolated Mak. Sensor Array | -4/Factory | Extrapolated Mak. Cloaking Device | -4/Factory | Extrapolated Mak. Spear | -4/Factory | Extrapolated Telecube | -3/Research | Extrapolated Diametric Drive | -3/Research | Scanalyzed Mak. Power Shielding | -3/Research | Extrapolated Zero-point Reactor | -2/Research | Hacked Imp. Matter Neutralizer | -2/Testing | Archive Imp. KE Penetrator | -2/Testing | Archive Nanosword | -2/Testing | Archive Robot Schematics ------------------ K-01 Serf | -8/Recycling | Hacked L-61 Swordsman | -2/Testing | Archive Fabricated ------------ Hyp. Gauss Cannon | x2 | -6/Factory Cesium-ion Thruster | x2 | -6/Factory Deep Structural Scanner | x1 | -6/Factory Cld. Cesium-ion Thruster | x1 | -6/Factory Cld. Cesium-ion Thruster | x1 | -6/Factory Adv. Corruption Screen | x2 | -4/Factory Zero-point Reactor | x1 | -2/Research Repaired ---------- Nothing Studied --------- Flight Unit | -8/Materials | Hacked Cesium-ion Thruster | -8/Materials | Hacked Lgt. Fission Core | -6/Factory | Hacked Field Propulsion Array | -4/Factory | Hacked Alien Tech Used ----------------- Integrated Dissipator Transdimensional Reconstructor Core Regenerator Integrated Reactor Achievements -------------- Left-hand Path Ride The Lightning Scientist At Large Sorry Old Pal Special Delivery Whoosh! Challenges ------------ None RPGLIKE | -11 -10 -10 -10 -9 -8 -8 -8 -8 -6 -6 -6 -6 -6 -6 -5 -5 -5 -5 -5 -5 -4 -4 -4 -4 -4 -4 -3 -3 -3 -3 -2 -2 -1 -1 --------- Run | Yrd Mat Min Exi Min Mat Sto Rec Scr Fac Was Fac Low Low Dat Pro Fac Ext Cet Arc Hub Fac Was Fac Upp Upp Zhi Pro Res Arm Lab Res Tes Acc Com Levels Raised 37 | . 3 1 2 2 4 1 1 . 1 . 6 . . . 1 2 . . . 1 . . 2 . . . 1 1 1 . 3 1 2 1 XP Earned 59720 | 3000 4577 1766 3289 2428 6452 2180 354 85 2150 260 8420 227 157 73 909 2784 415 240 122 835 971 46 2096 304 157 73 902 1378 2076 527 3425 1398 2930 2714 XP Spent 58480 | 2650 1600 1100 5820 . 9750 . 2900 . . . 10100 . 500 . . 900 3500 . . 1100 . . 3550 . . . 1400 . 2950 . 3000 1500 3800 2360 Upgrades 72 | 6 2 1 12 . 10 . 1 . . . 14 . 1 . . 1 1 . . 1 . . 7 . . . 1 . 5 . 3 1 1 4 Power Slot 1 | . . . . . . . . . . . . . . . . . . . . . . . 1 . . . . . . . . . . . Propulsion Slot 4 | 1 1 1 . . . . . . . . . . . . . . . . . . . . . . . . 1 . . . . . . . Utility Slot 12 | 1 1 . 2 . 4 . 1 . . . 1 . . . . . 1 . . . . . . . . . . . . . . . 1 . Weapon Slot 3 | 2 . . 1 . . . . . . . . . . . . . . . . . . . . . . . . . . . . . . . Core Integrity 2 | . . . . . . . . . . . . . . . . . . . . . . . . . . . . . . . . . . 2 Heat Dissipation 12 | . . . 4 . 5 . . . . . . . . . . . . . . . . . 3 . . . . . . . . . . . Energy Generation 4 | . . . . . 1 . . . . . 2 . . . . . . . . . . . . . . . . . 1 . . . . . Mass Support 3 | 1 . . 1 . . . . . . . . . . . . . . . . 1 . . . . . . . . . . . . . . Inventory Capacity 6 | 1 . . . . . . . . . . 3 . . . . . . . . . . . . . . . . . 1 . . 1 . . Sight Range 5 | . . . 2 . . . . . . . 2 . . . . 1 . . . . . . . . . . . . . . . . . . Ranged Accuracy 9 | . . . 2 . . . . . . . 1 . . . . . . . . . . . 2 . . . . . . . 2 . . 2 Hack Attack % 2 | . . . . . . . . . . . 2 . . . . . . . . . . . . . . . . . . . . . . . Hack Defense % 2 | . . . . . . . . . . . 2 . . . . . . . . . . . . . . . . . . . . . . . KI Resistance % 2 | . . . . . . . . . . . . . . . . . . . . . . . . . . . . . 2 . . . . . TH Resistance % 1 | . . . . . . . . . . . . . . . . . . . . . . . . . . . . . 1 . . . . . KI Damage % 4 | . . . . . . . . . . . 1 . 1 . . . . . . . . . 1 . . . . . . . 1 . . . Protomatter Created 25797 | . 174 116 729 45 642 741 93 468 57 . 3792 321 242 82 127 1361 567 332 155 726 107 82 1533 679 249 . 639 716 2566 . 2023 1304 1446 3683 Integrity Restored 20558 | . 231 501 1074 98 357 716 44 180 201 291 2637 88 101 . 57 1001 168 36 49 1063 141 217 2383 115 140 . 257 116 1993 . 1431 682 975 3215 Core 16501 | . 231 501 919 98 189 589 23 150 201 291 1951 72 77 . 44 782 144 21 37 837 141 154 1943 92 112 . 198 91 1551 . 1084 534 767 2677 Parts 4057 | . . . 155 . 168 127 21 30 . . 686 16 24 . 13 219 24 15 12 226 . 63 440 23 28 . 59 25 442 . 347 148 208 538 Protomatter Decayed 16242 | . . . 225 55 467 545 78 235 . . 2194 169 135 . 57 756 249 204 62 193 . . 620 574 200 . 483 2606 1134 . 1421 703 817 2060 Game ------ Seed ColdExperimentalLegs Manual? 0 Play Time 09:24:02 Cumulative 205.2 hours Start 2025.11.19 @ 16:32:57 End 2025.11.21 @ 22:21:19 Sessions 5 Manual Loads 0 Difficulty Rogue Special Mode Winter2019/RPGLIKE Game No. 63 Rogue 63 Adventurer 0 Explorer 0 Win Type - Total 7 Types 2/1/1/3/0/0/0/0/0/0 Lore% 62 Gallery% 59 Achievement% 59 Wizard Run 0 Options --------- Layout 2 ASCII 0 Keyboard 0 Movement Mouse Keybinds 1 Fullscreen 2 Font 20/X11 Map View 64x51 Zoom Use 0% Tactical HUD 1 Map Filters NONE Filters NONE Steam 1 RUN: 4003cf06-d3f2-4a92-87b7-f447e533aea5